Workbook

Sheet Navigation
K7: Shubham Krushi Kendra
L8: Stock and Sales FOR THE PERIOD 01-Jan-2020 TO 31-Mar-2020

Sheet Dealer Report
A1: Shubham Krushi Kendra
A2: Bayer
A3: Stock Category Summary
A4: 1-Jan-2020 to 31-Mar-2020
B5: Bayer
B6: Shubham Krushi Kendra 19-20
A7: Particulars | B7: 1-Jan-2020 to 31-Mar-2020
B8: Opening Balance | C8: Inwards | D8: Outwards | E8: Closing Balance
B9: Quantity | C9: Quantity | D9: Quantity | E9: Quantity
A10: Bayer Admire 150gm | B10: 221 | D10: 2 | E10: 219
A11: Bayer Admire 30gm | B11: 702 | E11: 702
A12: Bayer Admire 75gm | B12: 749 | E12: 749
A13: Bayer Adue 100gm
A14: Bayer Adue 200gm
A15: Bayer Alanto 100ml | B15: 2 | E15: 2
A16: Bayer Alanto 250ml | B16: -1 | E16: -1
A17: Bayer Alanto 500ml
A18: Bayer Aliette 100gm | B18: 13 | D18: 41 | E18: -28
A19: Bayer Aliette 250gm | B19: -10 | E19: -10
A20: Bayer Aliette 500gm | B20: -14 | D20: 1 | E20: -15
A21: Bayer Ambition 1 LI | B21: 20 | E21: 20
A22: Bayer Ambition 500 Ml | B22: 93 | E22: 93
A23: Bayer Antracol 1kg | B23: 239 | E23: 239
A24: Bayer Antracol 250gm | B24: 278 | D24: 51 | E24: 227
A25: Bayer Antracol 500gm | B25: 185 | E25: 185
A26: Bayer Belt Expert 100ml
A27: Bayer Belt Expert 250ml
A28: Bayer Belt Expert 50ml
A29: Bayer Confidor 100ml | B29: 756 | D29: 10 | E29: 746
A30: Bayer Confidor 250ml | B30: 596 | E30: 596
A31: Bayer Confidor 500ml | B31: 441 | E31: 441
A32: Bayer Confidor 50ml | B32: 1147 | D32: 32 | E32: 1115
A33: Bayer Decis 100ml | B33: 2 | E33: 2
A34: BAYER Decis 250 Ml | B34: 4 | D34: 1 | E34: 3
A35: BAYER DECIS2.8% 500ML
A36: BAYER DESIC 2.8% 250ML
A37: Bayer Etherel 100ml | B37: 50 | D37: 12 | E37: 38
A38: Bayer Etherel 500ml
A39: Bayer Fame 100ml | B39: 197 | D39: 2 | E39: 195
A40: Bayer Fame 10ml | B40: 200 | E40: 200
A41: Bayer Fame 250ml | B41: 44 | D41: 2 | E41: 42
A42: Bayer Fame 50ml | B42: 195 | D42: 5 | E42: 190
A43: Bayer Fitrest 100gm
A44: Bayer Fitrest 250gm | B44: 11 | E44: 11
A45: Bayer Folicur 100ml | B45: 54 | D45: 1 | E45: 53
A46: Bayer Folicur 250ml | B46: 15 | E46: 15
A47: Bayer Folicur 500ml
A48: Bayer Foost 250 GM | B48: 20 | E48: 20
A49: Bayer Foost 500gm
A50: Bayer Gaucho 100ml | B50: 205 | E50: 205
A51: Bayer Gaucho 250ml | B51: 40 | E51: 40
A52: Bayer Gaucho 50ml | B52: 414 | E52: 414
A53: Bayer Jump 2gm
A54: Bayer Jump 40gm | B54: 4 | E54: 4
A55: Bayer Ladwis 115 Gm
A56: Bayer Ladwis 57.5 ML | B56: 10 | E56: 10
A57: Bayer Larvin 100gm | B57: 78 | E57: 78
A58: BAYER Larvin 1 Kg | B58: 18 | E58: 18
A59: Bayer Larvin 250gm | B59: 170 | D59: 5 | E59: 165
A60: Bayer Larvin 500gm | B60: 174 | D60: 2 | E60: 172
A61: Bayer Lesenta 100gm
A62: Bayer Lesenta 40gm
A63: Bayer Movento 100ml | B63: 1 | E63: 1
A64: Bayer Movento 250ml | B64: 61 | D64: 3 | E64: 58
A65: Bayer Nativo 100gm | B65: 828 | D65: 10 | E65: 818
A66: Bayer Nativo 250gm | B66: 334 | D66: 8 | E66: 326
A67: Bayer Nativo 500gm | D67: 1 | E67: -1
A68: Bayer Nativo 50gm | B68: 432 | D68: 58 | E68: 374
A69: BAYER Oberon 200 Ml | B69: 33 | D69: 2 | E69: 31
A70: Bayer Oberon 500ml
A71: Bayer Planofik 100ml | B71: 100 | E71: 100
A72: Bayer Planofik 250ml | B72: 141 | E72: 141
A73: Bayer Planofik 500ml
A74: Bayer Regent + 1kg
A75: Bayer Regent 1li | B75: 230 | D75: 2 | E75: 228
A76: Bayer Regent 250ml | B76: 536 | D76: 50 | E76: 486
A77: Bayer Regent 500ml | B77: 537 | D77: 24 | E77: 513
A78: BAYER Regent Gold 250 Ml | B78: 82 | E78: 82
A79: BAYER Regent Gold 500 Ml | B79: 67 | E79: 67
A80: Bayer S Confidor 100ml | B80: 997 | E80: 997
A81: Bayer S Confidor 250ml | B81: 1349 | E81: 1349
A82: Bayer S Confidor 50ml | B82: 645 | D82: 9 | E82: 636
A83: BAYER Sectin 100 Gm
A84: BAYER Sencor 100gm
A85: BAYER Sivanto 250 Ml | B85: 2 | E85: 2
A86: BAYER SOLOMAN 100ML
A87: Bayer Solomon 1000ml
A88: Bayer Solomon 250ml
A89: Bayer Solomon 500ml | B89: 3 | E89: 3
A90: Bayer Spintor 75ml | B90: 102 | E90: 102
A91: Bayer Spintor 7ml | B91: 2 | E91: 2
A92: Bayer Whipsuper 1li
A93: Bayer Whipsuper 250ml | B93: 38 | E93: 38
A94: Bayer Whipsuper 500ml | B94: 20 | E94: 20
A95: Total | B95: =SUM(B10:B94) -> 13862 | C95: =SUM(C10:C94) -> 0 | D95: =SUM(D10:D94) -> 334 | E95: 13528

Sheet Dealer Report working
A1: Particulars | B1: Opening Qty | C1: Purchase Qty | D1: Sales Qty | E1: CLSG | F1: Master Name | K1: Values
A2: Bayer Admire 150gm | B2: 221 | D2: 2 | E2: 219 | F2: ADMIRE (T) WG70 30X150GR BOT IN | J2: Row Labels | K2: Sum of Opening Qty | L2: Count of Purchase Qty | M2: Sum of Sales Qty | N2: Sum of CLSG
A3: Bayer Admire 30gm | B3: 702 | E3: 702 | F3: ADMIRE (T) WG70 150X30GR BOT IN | J3: ADMIRE (T) WG70 150X30GR BOT IN | K3: 702 | N3: 702
A4: Bayer Admire 75gm | B4: 749 | E4: 749 | F4: ADMIRE (T) WG70 60X75GR BOT IN | J4: ADMIRE (T) WG70 30X150GR BOT IN | K4: 221 | M4: 2 | N4: 219
A5: Bayer Adue 100gm | F5: ADUE WG70 6X100G BOT IN | J5: ADMIRE (T) WG70 60X75GR BOT IN | K5: 749 | N5: 749
A6: Bayer Adue 200gm | F6: ADUE WG70 3X200G BOT IN | J6: ADUE WG70 3X200G BOT IN
A7: Bayer Alanto 100ml | B7: 2 | E7: 2 | F7: ALANTO (T) SC240 50X100ML BOT IN | J7: ADUE WG70 6X100G BOT IN
A8: Bayer Alanto 250ml | B8: -1 | E8: -1 | F8: ALANTO (T) SC240 40X250ML BOT IN | J8: ALANTO (T) SC240 20X500ML BOT IN
A9: Bayer Alanto 500ml | F9: ALANTO (T) SC240 20X500ML BOT IN | J9: ALANTO (T) SC240 40X250ML BOT IN | K9: -1 | N9: -1
A10: Bayer Aliette 100gm | B10: 13 | D10: 41 | E10: -28 | F10: ALIETTE WP80 40X100GR BAG IN | J10: ALANTO (T) SC240 50X100ML BOT IN | K10: 2 | N10: 2
A11: Bayer Aliette 250gm | B11: -10 | E11: -10 | F11: ALIETTE WP80 20X250GR BAG IN | J11: ALIETTE WP80 20X250GR BAG IN | K11: -10 | N11: -10
A12: Bayer Aliette 500gm | B12: -14 | D12: 1 | E12: -15 | F12: ALIETTE WP80 20X500GR BAG IN | J12: ALIETTE WP80 20X500GR BAG IN | K12: -14 | M12: 1 | N12: -15
A13: Bayer Ambition 1 LI | B13: 20 | E13: 20 | F13: AMBITION 10X1L BOT IN | J13: ALIETTE WP80 40X100GR BAG IN | K13: 13 | M13: 41 | N13: -28
A14: Bayer Ambition 500 Ml | B14: 93 | E14: 93 | F14: AMBITION 20X500ML BOT IN | J14: AMBITION 10X1L BOT IN | K14: 20 | N14: 20
A15: Bayer Antracol 1kg | B15: 239 | E15: 239 | F15: ANTRACOL (T) WP70 10X1KG BAG IN | J15: AMBITION 20X500ML BOT IN | K15: 93 | N15: 93
A16: Bayer Antracol 250gm | B16: 278 | D16: 51 | E16: 227 | F16: ANTRACOL (T) WP70 40X250GR BAG IN | J16: ANTRACOL (T) WP70 10X1KG BAG IN | K16: 239 | N16: 239
A17: Bayer Antracol 500gm | B17: 185 | E17: 185 | F17: ANTRACOL (T) WP70 20X500GR BAG IN | J17: ANTRACOL (T) WP70 20X500GR BAG IN | K17: 185 | N17: 185
A18: Bayer Belt Expert 100ml | F18: BELT EXPERT SC480 50X100ML BOT IN | J18: ANTRACOL (T) WP70 40X250GR BAG IN | K18: 278 | M18: 51 | N18: 227
A19: Bayer Belt Expert 250ml | F19: BELT EXPERT SC480 40X250ML BOT IN | J19: BELT EXPERT SC480 100X50ML BOT IN
A20: Bayer Belt Expert 50ml | F20: BELT EXPERT SC480 100X50ML BOT IN | J20: BELT EXPERT SC480 40X250ML BOT IN
A21: Bayer Confidor 100ml | B21: 756 | D21: 10 | E21: 746 | F21: CONFIDOR (T) SL200 50X100ML BOT IN | J21: BELT EXPERT SC480 50X100ML BOT IN
A22: Bayer Confidor 250ml | B22: 596 | E22: 596 | F22: CONFIDOR (T) SL200 20X250ML BOT IN | J22: CONFIDOR (T) SL200 100X50ML BOT IN | K22: 1147 | M22: 32 | N22: 1115
A23: Bayer Confidor 500ml | B23: 441 | E23: 441 | F23: CONFIDOR (T) SL200 20X500ML BOT IN | J23: CONFIDOR (T) SL200 20X250ML BOT IN | K23: 596 | N23: 596
A24: Bayer Confidor 50ml | B24: 1147 | D24: 32 | E24: 1115 | F24: CONFIDOR (T) SL200 100X50ML BOT IN | J24: CONFIDOR (T) SL200 20X500ML BOT IN | K24: 441 | N24: 441
A25: Bayer Decis 100ml | B25: 2 | E25: 2 | F25: DECIS EC 28 50X100ML BOT IN | J25: CONFIDOR (T) SL200 50X100ML BOT IN | K25: 756 | M25: 10 | N25: 746
A26: BAYER Decis 250 Ml | B26: 4 | D26: 1 | E26: 3 | F26: DECIS EC 28 40X250ML BOT IN | J26: CONFIDOR SUPER (T) SC350 20X250ML BOT IN | K26: 1349 | N26: 1349
A27: BAYER DECIS2.8% 500ML | F27: DECIS EC 28 20X500ML BOT IN | J27: CONFIDOR SUPER (T) SC350 50X100ML BOT IN | K27: 997 | N27: 997
A28: BAYER DESIC 2.8% 250ML | F28: DECIS EC 28 40X250ML BOT IN | J28: CONFIDOR SUPER (T) SC350 50X50ML BOT IN | K28: 645 | M28: 9 | N28: 636
A29: Bayer Etherel 100ml | B29: 50 | D29: 12 | E29: 38 | F29: ETHREL SL39 50X100ML BOT IN | J29: DECIS EC 28 20X500ML BOT IN
A30: Bayer Etherel 500ml | F30: ETHREL SL39 20X500ML BOT IN | J30: DECIS EC 28 40X250ML BOT IN | K30: 4 | M30: 1 | N30: 3
A31: Bayer Fame 100ml | B31: 197 | D31: 2 | E31: 195 | F31: FAME (T) SC480 20X100ML BOT IN | J31: DECIS EC 28 50X100ML BOT IN | K31: 2 | N31: 2
A32: Bayer Fame 10ml | B32: 200 | E32: 200 | F32: FAME (T) SC480 10X(20X10ML) BOT IN | J32: ETHREL SL39 20X500ML BOT IN
A33: Bayer Fame 250ml | B33: 44 | D33: 2 | E33: 42 | F33: FAME (T) SC480 8X250ML BOT IN | J33: ETHREL SL39 50X100ML BOT IN | K33: 50 | M33: 12 | N33: 38
A34: Bayer Fame 50ml | B34: 195 | D34: 5 | E34: 190 | F34: FAME (T) SC480 40X50ML BOT IN | J34: FAME (T) SC480 10X(20X10ML) BOT IN | K34: 200 | N34: 200
A35: Bayer Fitrest 100gm | F35: FITREST SG5 40X100GR BOT IN | J35: FAME (T) SC480 20X100ML BOT IN | K35: 197 | M35: 2 | N35: 195
A36: Bayer Fitrest 250gm | B36: 11 | E36: 11 | F36: FITREST SG5 16X250GR BOT IN | J36: FAME (T) SC480 40X50ML BOT IN | K36: 195 | M36: 5 | N36: 190
A37: Bayer Folicur 100ml | B37: 54 | D37: 1 | E37: 53 | F37: FOLICUR (T) EC250 50X100ML BOT IN | J37: FAME (T) SC480 8X250ML BOT IN | K37: 44 | M37: 2 | N37: 42
A38: Bayer Folicur 250ml | B38: 15 | E38: 15 | F38: FOLICUR (T) EC250 40X250ML BOT IN | J38: FITREST SG5 16X250GR BOT IN | K38: 11 | N38: 11
A39: Bayer Folicur 500ml | F39: FOLICUR (T) EC250 20X500ML BOT IN | J39: FITREST SG5 40X100GR BOT IN
A40: Bayer Foost 250 GM | B40: 20 | E40: 20 | F40: FOOST WP50 20X250G BAG IN | J40: FOLICUR (T) EC250 20X500ML BOT IN
A41: Bayer Foost 500gm | F41: FOOST WP50 24X500G BAG IN | J41: FOLICUR (T) EC250 40X250ML BOT IN | K41: 15 | N41: 15
A42: Bayer Gaucho 100ml | B42: 205 | E42: 205 | F42: GAUCHO FS600 50X100ML BOT IN | J42: FOLICUR (T) EC250 50X100ML BOT IN | K42: 54 | M42: 1 | N42: 53
A43: Bayer Gaucho 250ml | B43: 40 | E43: 40 | F43: GAUCHO FS600 40X250ML BOT IN | J43: FOOST WP50 20X250G BAG IN | K43: 20 | N43: 20
A44: Bayer Gaucho 50ml | B44: 414 | E44: 414 | F44: GAUCHO FS600 100X50ML BOT IN | J44: FOOST WP50 24X500G BAG IN
A45: Bayer Jump 2gm | F45: JUMP WG80 160X(10X2GR) BAG IN | J45: GAUCHO FS600 100X50ML BOT IN | K45: 414 | N45: 414
A46: Bayer Jump 40gm | B46: 4 | E46: 4 | F46: JUMP WG80 80X40GR BAG IN | J46: GAUCHO FS600 40X250ML BOT IN | K46: 40 | N46: 40
A47: Bayer Ladwis 115 Gm | F47: LAUDIS SC630 8X115ML BOT IN | J47: GAUCHO FS600 50X100ML BOT IN | K47: 205 | N47: 205
A48: Bayer Ladwis 57.5 ML | B48: 10 | E48: 10 | F48: LAUDIS SC630 10X57.5ML BOT IN | J48: JUMP WG80 160X(10X2GR) BAG IN
A49: Bayer Larvin 100gm | B49: 78 | E49: 78 | F49: LARVIN (T) WP75 40X100GR BAG IN | J49: JUMP WG80 80X40GR BAG IN | K49: 4 | N49: 4
A50: BAYER Larvin 1 Kg | B50: 18 | E50: 18 | F50: LARVIN (T) WP75 10X1KG BAG IN | J50: LARVIN (T) WP75 10X1KG BAG IN | K50: 18 | N50: 18
A51: Bayer Larvin 250gm | B51: 170 | D51: 5 | E51: 165 | F51: LARVIN (T) WP75 20X250GR BAG IN | J51: LARVIN (T) WP75 20X250GR BAG IN | K51: 170 | M51: 5 | N51: 165
A52: Bayer Larvin 500gm | B52: 174 | D52: 2 | E52: 172 | F52: LARVIN (T) WP75 20X500GR BAG IN | J52: LARVIN (T) WP75 20X500GR BAG IN | K52: 174 | M52: 2 | N52: 172
A53: Bayer Lesenta 100gm | F53: LESENTA WG80 50X100GR BAG IN | J53: LARVIN (T) WP75 40X100GR BAG IN | K53: 78 | N53: 78
A54: Bayer Lesenta 40gm | F54: LESENTA WG80 100X40GR BAG IN | J54: LAUDIS SC630 10X57.5ML BOT IN | K54: 10 | N54: 10
A55: Bayer Movento 100ml | B55: 1 | E55: 1 | F55: MOVENTO ENERGY SC240 50X100ML BOT IN | J55: LAUDIS SC630 8X115ML BOT IN
A56: Bayer Movento 250ml | B56: 61 | D56: 3 | E56: 58 | F56: MOVENTO ENERGY SC240 40X250ML BOT IN | J56: LESENTA WG80 100X40GR BAG IN
A57: Bayer Nativo 100gm | B57: 828 | D57: 10 | E57: 818 | F57: NATIVO WG75 50X100GR BAG IN | J57: LESENTA WG80 50X100GR BAG IN
A58: Bayer Nativo 250gm | B58: 334 | D58: 8 | E58: 326 | F58: NATIVO WG75 40X250GR BAG IN | J58: MOVENTO ENERGY SC240 40X250ML BOT IN | K58: 61 | M58: 3 | N58: 58
A59: Bayer Nativo 500gm | D59: 1 | E59: -1 | F59: NATIVO WG75 20X500GR BAG IN | J59: MOVENTO ENERGY SC240 50X100ML BOT IN | K59: 1 | N59: 1
A60: Bayer Nativo 50gm | B60: 432 | D60: 58 | E60: 374 | F60: NATIVO WG75 100X50GR BAG IN | J60: NATIVO WG75 100X50GR BAG IN | K60: 432 | M60: 58 | N60: 374
A61: BAYER Oberon 200 Ml | B61: 33 | D61: 2 | E61: 31 | F61: OBERON (T) SC240 40X200ML BOT IN | J61: NATIVO WG75 20X500GR BAG IN | M61: 1 | N61: -1
A62: Bayer Oberon 500ml | F62: OBERON (T) SC240 20X500ML BOT IN | J62: NATIVO WG75 40X250GR BAG IN | K62: 334 | M62: 8 | N62: 326
A63: Bayer Planofik 100ml | B63: 100 | E63: 100 | F63: PLANOFIX SL4 5 50X100ML BOT IN | J63: NATIVO WG75 50X100GR BAG IN | K63: 828 | M63: 10 | N63: 818
A64: Bayer Planofik 250ml | B64: 141 | E64: 141 | F64: PLANOFIX SL4 5 40X250ML BOT IN | J64: OBERON (T) SC240 20X500ML BOT IN
A65: Bayer Planofik 500ml | F65: PLANOFIX SL4 5 20X500ML BOT IN | J65: OBERON (T) SC240 40X200ML BOT IN | K65: 33 | M65: 2 | N65: 31
A66: Bayer Regent + 1kg | F66: REGENT GR0 3 20X1KG BAG IN | J66: PLANOFIX SL4 5 20X500ML BOT IN
A67: Bayer Regent 1li | B67: 230 | D67: 2 | E67: 228 | F67: REGENT (T) SC50 10X1L BOT IN | J67: PLANOFIX SL4 5 40X250ML BOT IN | K67: 141 | N67: 141
A68: Bayer Regent 250ml | B68: 536 | D68: 50 | E68: 486 | F68: REGENT (T) SC50 20X250ML BOT IN | J68: PLANOFIX SL4 5 50X100ML BOT IN | K68: 100 | N68: 100
A69: Bayer Regent 500ml | B69: 537 | D69: 24 | E69: 513 | F69: REGENT (T) SC50 20X500ML BOT IN | J69: REGENT (T) SC50 10X1L BOT IN | K69: 230 | M69: 2 | N69: 228
A70: BAYER Regent Gold 250 Ml | B70: 82 | E70: 82 | F70: REGENT GOLD SC200 40X250ML BOT IN | J70: REGENT (T) SC50 20X250ML BOT IN | K70: 536 | M70: 50 | N70: 486
A71: BAYER Regent Gold 500 Ml | B71: 67 | E71: 67 | F71: REGENT GOLD SC200 20X500ML BOT IN | J71: REGENT (T) SC50 20X500ML BOT IN | K71: 537 | M71: 24 | N71: 513
A72: Bayer S Confidor 100ml | B72: 997 | E72: 997 | F72: CONFIDOR SUPER (T) SC350 50X100ML BOT IN | J72: REGENT GOLD SC200 20X500ML BOT IN | K72: 67 | N72: 67
A73: Bayer S Confidor 250ml | B73: 1349 | E73: 1349 | F73: CONFIDOR SUPER (T) SC350 20X250ML BOT IN | J73: REGENT GOLD SC200 40X250ML BOT IN | K73: 82 | N73: 82
A74: Bayer S Confidor 50ml | B74: 645 | D74: 9 | E74: 636 | F74: CONFIDOR SUPER (T) SC350 50X50ML BOT IN | J74: REGENT GR0 3 20X1KG BAG IN
A75: BAYER Sectin 100 Gm | F75: SECTIN WG60 50X100GR BAG IN | J75: SECTIN WG60 50X100GR BAG IN
A76: BAYER Sencor 100gm | F76: SENCOR WP70 60X100GR BAG IN | J76: SENCOR WP70 60X100GR BAG IN
A77: BAYER Sivanto 250 Ml | B77: 2 | E77: 2 | F77: SIVANTO PRIME SL200 40X250ML BOT IN | J77: SIVANTO PRIME SL200 40X250ML BOT IN | K77: 2 | N77: 2
A78: BAYER SOLOMAN 100ML | F78: SOLOMON OD300 50X100ML BOT IN | J78: SOLOMON OD300 10X1L BOT IN
A79: Bayer Solomon 1000ml | F79: SOLOMON OD300 10X1L BOT IN | J79: SOLOMON OD300 20X500ML BOT IN | K79: 3 | N79: 3
A80: Bayer Solomon 250ml | F80: SOLOMON OD300 40X250ML BOT IN | J80: SOLOMON OD300 40X250ML BOT IN
A81: Bayer Solomon 500ml | B81: 3 | E81: 3 | F81: SOLOMON OD300 20X500ML BOT IN | J81: SOLOMON OD300 50X100ML BOT IN
A82: Bayer Spintor 75ml | B82: 102 | E82: 102 | F82: SPINTOR SC495 20X75ML BOT IN | J82: SPINTOR SC495 10X(20X7ML) BOT IN | K82: 2 | N82: 2
A83: Bayer Spintor 7ml | B83: 2 | E83: 2 | F83: SPINTOR SC495 10X(20X7ML) BOT IN | J83: SPINTOR SC495 20X75ML BOT IN | K83: 102 | N83: 102
A84: Bayer Whipsuper 1li | F84: WHIPSUPER (T) EC90 10X1L BOT IN | J84: WHIPSUPER (T) EC90 10X1L BOT IN
A85: Bayer Whipsuper 250ml | B85: 38 | E85: 38 | F85: WHIPSUPER (T) EC90 40X250ML BOT IN | J85: WHIPSUPER (T) EC90 20X500ML BOT IN | K85: 20 | N85: 20
A86: Bayer Whipsuper 500ml | B86: 20 | E86: 20 | F86: WHIPSUPER (T) EC90 20X500ML BOT IN | J86: WHIPSUPER (T) EC90 40X250ML BOT IN | K86: 38 | N86: 38
J87: Grand Total | K87: 13862 | M87: 334 | N87: 13528

Sheet Master
A1: Item Details | B1: Master Name
A2: Bayer Admire 150gm | B2: ADMIRE (T) WG70 30X150GR BOT IN
A3: Bayer Admire 30gm | B3: ADMIRE (T) WG70 150X30GR BOT IN
A4: Bayer Admire 75gm | B4: ADMIRE (T) WG70 60X75GR BOT IN
A5: Bayer Adue 100gm | B5: ADUE WG70 6X100G BOT IN
A6: Bayer Adue 200gm | B6: ADUE WG70 3X200G BOT IN
A7: Bayer Alanto 100ml | B7: ALANTO (T) SC240 50X100ML BOT IN
A8: Bayer Alanto 250ml | B8: ALANTO (T) SC240 40X250ML BOT IN
A9: Bayer Alanto 500ml | B9: ALANTO (T) SC240 20X500ML BOT IN
A10: Bayer Aliette 100gm | B10: ALIETTE WP80 40X100GR BAG IN
A11: Bayer Aliette 250gm | B11: ALIETTE WP80 20X250GR BAG IN
A12: Bayer Aliette 500gm | B12: ALIETTE WP80 20X500GR BAG IN
A13: Bayer Ambition 1 LI | B13: AMBITION 10X1L BOT IN
A14: Bayer Ambition 500 Ml | B14: AMBITION 20X500ML BOT IN
A15: Bayer Antracol 1kg | B15: ANTRACOL (T) WP70 10X1KG BAG IN
A16: Bayer Antracol 250gm | B16: ANTRACOL (T) WP70 40X250GR BAG IN
A17: Bayer Antracol 500gm | B17: ANTRACOL (T) WP70 20X500GR BAG IN
A18: Bayer Belt Expert 100ml | B18: BELT EXPERT SC480 50X100ML BOT IN
A19: Bayer Belt Expert 250ml | B19: BELT EXPERT SC480 40X250ML BOT IN
A20: Bayer Belt Expert 50ml | B20: BELT EXPERT SC480 100X50ML BOT IN
A21: Bayer Confidor 100ml | B21: CONFIDOR (T) SL200 50X100ML BOT IN
A22: Bayer Confidor 250ml | B22: CONFIDOR (T) SL200 20X250ML BOT IN
A23: Bayer Confidor 500ml | B23: CONFIDOR (T) SL200 20X500ML BOT IN
A24: Bayer Confidor 50ml | B24: CONFIDOR (T) SL200 100X50ML BOT IN
A25: Bayer Decis 100ml | B25: DECIS EC 28 50X100ML BOT IN
A26: BAYER Decis 250 Ml | B26: DECIS EC 28 40X250ML BOT IN
A27: BAYER DECIS2.8% 500ML | B27: DECIS EC 28 20X500ML BOT IN
A28: BAYER DESIC 2.8% 250ML | B28: DECIS EC 28 40X250ML BOT IN
A29: Bayer Etherel 100ml | B29: ETHREL SL39 50X100ML BOT IN
A30: Bayer Etherel 500ml | B30: ETHREL SL39 20X500ML BOT IN
A31: Bayer Fame 100ml | B31: FAME (T) SC480 20X100ML BOT IN
A32: Bayer Fame 10ml | B32: FAME (T) SC480 10X(20X10ML) BOT IN
A33: Bayer Fame 250ml | B33: FAME (T) SC480 8X250ML BOT IN
A34: Bayer Fame 50ml | B34: FAME (T) SC480 40X50ML BOT IN
A35: Bayer Fitrest 100gm | B35: FITREST SG5 40X100GR BOT IN
A36: Bayer Fitrest 250gm | B36: FITREST SG5 16X250GR BOT IN
A37: Bayer Folicur 100ml | B37: FOLICUR (T) EC250 50X100ML BOT IN
A38: Bayer Folicur 250ml | B38: FOLICUR (T) EC250 40X250ML BOT IN
A39: Bayer Folicur 500ml | B39: FOLICUR (T) EC250 20X500ML BOT IN
A40: Bayer Foost 250 GM | B40: FOOST WP50 20X250G BAG IN
A41: Bayer Foost 500gm | B41: FOOST WP50 24X500G BAG IN
A42: Bayer Gaucho 100ml | B42: GAUCHO FS600 50X100ML BOT IN
A43: Bayer Gaucho 250ml | B43: GAUCHO FS600 40X250ML BOT IN
A44: Bayer Gaucho 50ml | B44: GAUCHO FS600 100X50ML BOT IN
A45: Bayer Jump 2gm | B45: JUMP WG80 160X(10X2GR) BAG IN
A46: Bayer Jump 40gm | B46: JUMP WG80 80X40GR BAG IN
A47: Bayer Ladwis 115 Gm | B47: LAUDIS SC630 8X115ML BOT IN
A48: Bayer Ladwis 57.5 ML | B48: LAUDIS SC630 10X57.5ML BOT IN
A49: Bayer Larvin 100gm | B49: LARVIN (T) WP75 40X100GR BAG IN
A50: BAYER Larvin 1 Kg | B50: LARVIN (T) WP75 10X1KG BAG IN
A51: Bayer Larvin 250gm | B51: LARVIN (T) WP75 20X250GR BAG IN
A52: Bayer Larvin 500gm | B52: LARVIN (T) WP75 20X500GR BAG IN
A53: Bayer Lesenta 100gm | B53: LESENTA WG80 50X100GR BAG IN
A54: Bayer Lesenta 40gm | B54: LESENTA WG80 100X40GR BAG IN
A55: Bayer Movento 100ml | B55: MOVENTO ENERGY SC240 50X100ML BOT IN
A56: Bayer Movento 250ml | B56: MOVENTO ENERGY SC240 40X250ML BOT IN
A57: Bayer Nativo 100gm | B57: NATIVO WG75 50X100GR BAG IN
A58: Bayer Nativo 250gm | B58: NATIVO WG75 40X250GR BAG IN
A59: Bayer Nativo 500gm | B59: NATIVO WG75 20X500GR BAG IN
A60: Bayer Nativo 50gm | B60: NATIVO WG75 100X50GR BAG IN
A61: BAYER Oberon 200 Ml | B61: OBERON (T) SC240 40X200ML BOT IN
A62: Bayer Oberon 500ml | B62: OBERON (T) SC240 20X500ML BOT IN
A63: Bayer Planofik 100ml | B63: PLANOFIX SL4 5 50X100ML BOT IN
A64: Bayer Planofik 250ml | B64: PLANOFIX SL4 5 40X250ML BOT IN
A65: Bayer Planofik 500ml | B65: PLANOFIX SL4 5 20X500ML BOT IN
A66: Bayer Regent + 1kg | B66: REGENT GR0 3 20X1KG BAG IN
A67: Bayer Regent 1li | B67: REGENT (T) SC50 10X1L BOT IN
A68: Bayer Regent 250ml | B68: REGENT (T) SC50 20X250ML BOT IN
A69: Bayer Regent 500ml | B69: REGENT (T) SC50 20X500ML BOT IN
A70: BAYER Regent Gold 250 Ml | B70: REGENT GOLD SC200 40X250ML BOT IN
A71: BAYER Regent Gold 500 Ml | B71: REGENT GOLD SC200 20X500ML BOT IN
A72: Bayer S Confidor 100ml | B72: CONFIDOR SUPER (T) SC350 50X100ML BOT IN
A73: Bayer S Confidor 250ml | B73: CONFIDOR SUPER (T) SC350 20X250ML BOT IN
A74: Bayer S Confidor 50ml | B74: CONFIDOR SUPER (T) SC350 50X50ML BOT IN
A75: BAYER Sectin 100 Gm | B75: SECTIN WG60 50X100GR BAG IN
A76: BAYER Sencor 100gm | B76: SENCOR WP70 60X100GR BAG IN
A77: BAYER Sivanto 250 Ml | B77: SIVANTO PRIME SL200 40X250ML BOT IN
A78: BAYER SOLOMAN 100ML | B78: SOLOMON OD300 50X100ML BOT IN
A79: Bayer Solomon 1000ml | B79: SOLOMON OD300 10X1L BOT IN
A80: Bayer Solomon 250ml | B80: SOLOMON OD300 40X250ML BOT IN
A81: Bayer Solomon 500ml | B81: SOLOMON OD300 20X500ML BOT IN
A82: Bayer Spintor 75ml | B82: SPINTOR SC495 20X75ML BOT IN
A83: Bayer Spintor 7ml | B83: SPINTOR SC495 10X(20X7ML) BOT IN
A84: Bayer Whipsuper 1li | B84: WHIPSUPER (T) EC90 10X1L BOT IN
A85: Bayer Whipsuper 250ml | B85: WHIPSUPER (T) EC90 40X250ML BOT IN
A86: Bayer Whipsuper 500ml | B86: WHIPSUPER (T) EC90 20X500ML BOT IN

Sheet Final Dealer Work
B2: PRODUCT | C2: ITEMALIAS | D2: Bpc | E2: Volume | F2: Opening Qty | G2: Purchase Qty | H2: Purchase Return Qty | I2: Sales Qty | J2: Sales Return Qty | K2: Transfer Qty | L2: Consignment Qty | M2: Adjustment Qty | N2: CLSG
B3: ADMIRE (T) WG70 150X30GR BOT IN | F3: 702 | G3: 0 | H3: 0 | I3: 0 | J3: 0 | K3: 0 | L3: 0 | M3: 0 | N3: 702
B4: ADMIRE (T) WG70 30X150GR BOT IN | F4: 221 | G4: 0 | H4: 0 | I4: 2 | J4: 0 | K4: 0 | L4: 0 | M4: 0 | N4: 219
B5: ADMIRE (T) WG70 60X75GR BOT IN | F5: 749 | G5: 0 | H5: 0 | I5: 0 | J5: 0 | K5: 0 | L5: 0 | M5: 0 | N5: 749
B6: ADUE WG70 3X200G BOT IN | F6: 0 | G6: 0 | H6: 0 | I6: 0 | J6: 0 | K6: 0 | L6: 0 | M6: 0 | N6: 0
B7: ADUE WG70 6X100G BOT IN | F7: 0 | G7: 0 | H7: 0 | I7: 0 | J7: 0 | K7: 0 | L7: 0 | M7: 0 | N7: 0
B8: ALANTO (T) SC240 20X500ML BOT IN | F8: 0 | G8: 0 | H8: 0 | I8: 0 | J8: 0 | K8: 0 | L8: 0 | M8: 0 | N8: 0
B9: ALANTO (T) SC240 40X250ML BOT IN | F9: -1 | G9: 0 | H9: 0 | I9: 0 | J9: 0 | K9: 0 | L9: 0 | M9: 0 | N9: -1
B10: ALANTO (T) SC240 50X100ML BOT IN | F10: 2 | G10: 0 | H10: 0 | I10: 0 | J10: 0 | K10: 0 | L10: 0 | M10: 0 | N10: 2
B11: ALIETTE WP80 20X250GR BAG IN | F11: -10 | G11: 0 | H11: 0 | I11: 0 | J11: 0 | K11: 0 | L11: 0 | M11: 0 | N11: -10
B12: ALIETTE WP80 20X500GR BAG IN | F12: -14 | G12: 0 | H12: 0 | I12: 1 | J12: 0 | K12: 0 | L12: 0 | M12: 0 | N12: -15
B13: ALIETTE WP80 40X100GR BAG IN | F13: 13 | G13: 0 | H13: 0 | I13: 41 | J13: 0 | K13: 0 | L13: 0 | M13: 0 | N13: -28
B14: AMBITION 10X1L BOT IN | F14: 20 | G14: 0 | H14: 0 | I14: 0 | J14: 0 | K14: 0 | L14: 0 | M14: 0 | N14: 20
B15: AMBITION 20X500ML BOT IN | F15: 93 | G15: 0 | H15: 0 | I15: 0 | J15: 0 | K15: 0 | L15: 0 | M15: 0 | N15: 93
B16: ANTRACOL (T) WP70 10X1KG BAG IN | F16: 239 | G16: 0 | H16: 0 | I16: 0 | J16: 0 | K16: 0 | L16: 0 | M16: 0 | N16: 239
B17: ANTRACOL (T) WP70 20X500GR BAG IN | F17: 185 | G17: 0 | H17: 0 | I17: 0 | J17: 0 | K17: 0 | L17: 0 | M17: 0 | N17: 185
B18: ANTRACOL (T) WP70 40X250GR BAG IN | F18: 278 | G18: 0 | H18: 0 | I18: 51 | J18: 0 | K18: 0 | L18: 0 | M18: 0 | N18: 227
B19: BELT EXPERT SC480 100X50ML BOT IN | F19: 0 | G19: 0 | H19: 0 | I19: 0 | J19: 0 | K19: 0 | L19: 0 | M19: 0 | N19: 0
B20: BELT EXPERT SC480 40X250ML BOT IN | F20: 0 | G20: 0 | H20: 0 | I20: 0 | J20: 0 | K20: 0 | L20: 0 | M20: 0 | N20: 0
B21: BELT EXPERT SC480 50X100ML BOT IN | F21: 0 | G21: 0 | H21: 0 | I21: 0 | J21: 0 | K21: 0 | L21: 0 | M21: 0 | N21: 0
B22: CONFIDOR (T) SL200 100X50ML BOT IN | F22: 1147 | G22: 0 | H22: 0 | I22: 32 | J22: 0 | K22: 0 | L22: 0 | M22: 0 | N22: 1115
B23: CONFIDOR (T) SL200 20X250ML BOT IN | F23: 596 | G23: 0 | H23: 0 | I23: 0 | J23: 0 | K23: 0 | L23: 0 | M23: 0 | N23: 596
B24: CONFIDOR (T) SL200 20X500ML BOT IN | F24: 441 | G24: 0 | H24: 0 | I24: 0 | J24: 0 | K24: 0 | L24: 0 | M24: 0 | N24: 441
B25: CONFIDOR (T) SL200 50X100ML BOT IN | F25: 756 | G25: 0 | H25: 0 | I25: 10 | J25: 0 | K25: 0 | L25: 0 | M25: 0 | N25: 746
B26: CONFIDOR SUPER (T) SC350 20X250ML BOT IN | F26: 1349 | G26: 0 | H26: 0 | I26: 0 | J26: 0 | K26: 0 | L26: 0 | M26: 0 | N26: 1349
B27: CONFIDOR SUPER (T) SC350 50X100ML BOT IN | F27: 997 | G27: 0 | H27: 0 | I27: 0 | J27: 0 | K27: 0 | L27: 0 | M27: 0 | N27: 997
B28: CONFIDOR SUPER (T) SC350 50X50ML BOT IN | F28: 645 | G28: 0 | H28: 0 | I28: 9 | J28: 0 | K28: 0 | L28: 0 | M28: 0 | N28: 636
B29: DECIS EC 28 20X500ML BOT IN | F29: 0 | G29: 0 | H29: 0 | I29: 0 | J29: 0 | K29: 0 | L29: 0 | M29: 0 | N29: 0
B30: DECIS EC 28 40X250ML BOT IN | F30: 4 | G30: 0 | H30: 0 | I30: 1 | J30: 0 | K30: 0 | L30: 0 | M30: 0 | N30: 3
B31: DECIS EC 28 50X100ML BOT IN | F31: 2 | G31: 0 | H31: 0 | I31: 0 | J31: 0 | K31: 0 | L31: 0 | M31: 0 | N31: 2
B32: ETHREL SL39 20X500ML BOT IN | F32: 0 | G32: 0 | H32: 0 | I32: 0 | J32: 0 | K32: 0 | L32: 0 | M32: 0 | N32: 0
B33: ETHREL SL39 50X100ML BOT IN | F33: 50 | G33: 0 | H33: 0 | I33: 12 | J33: 0 | K33: 0 | L33: 0 | M33: 0 | N33: 38
B34: FAME (T) SC480 10X(20X10ML) BOT IN | F34: 200 | G34: 0 | H34: 0 | I34: 0 | J34: 0 | K34: 0 | L34: 0 | M34: 0 | N34: 200
B35: FAME (T) SC480 20X100ML BOT IN | F35: 197 | G35: 0 | H35: 0 | I35: 2 | J35: 0 | K35: 0 | L35: 0 | M35: 0 | N35: 195
B36: FAME (T) SC480 40X50ML BOT IN | F36: 195 | G36: 0 | H36: 0 | I36: 5 | J36: 0 | K36: 0 | L36: 0 | M36: 0 | N36: 190
B37: FAME (T) SC480 8X250ML BOT IN | F37: 44 | G37: 0 | H37: 0 | I37: 2 | J37: 0 | K37: 0 | L37: 0 | M37: 0 | N37: 42
B38: FITREST SG5 16X250GR BOT IN | F38: 11 | G38: 0 | H38: 0 | I38: 0 | J38: 0 | K38: 0 | L38: 0 | M38: 0 | N38: 11
B39: FITREST SG5 40X100GR BOT IN | F39: 0 | G39: 0 | H39: 0 | I39: 0 | J39: 0 | K39: 0 | L39: 0 | M39: 0 | N39: 0
B40: FOLICUR (T) EC250 20X500ML BOT IN | F40: 0 | G40: 0 | H40: 0 | I40: 0 | J40: 0 | K40: 0 | L40: 0 | M40: 0 | N40: 0
B41: FOLICUR (T) EC250 40X250ML BOT IN | F41: 15 | G41: 0 | H41: 0 | I41: 0 | J41: 0 | K41: 0 | L41: 0 | M41: 0 | N41: 15
B42: FOLICUR (T) EC250 50X100ML BOT IN | F42: 54 | G42: 0 | H42: 0 | I42: 1 | J42: 0 | K42: 0 | L42: 0 | M42: 0 | N42: 53
B43: FOOST WP50 20X250G BAG IN | F43: 20 | G43: 0 | H43: 0 | I43: 0 | J43: 0 | K43: 0 | L43: 0 | M43: 0 | N43: 20
B44: FOOST WP50 24X500G BAG IN | F44: 0 | G44: 0 | H44: 0 | I44: 0 | J44: 0 | K44: 0 | L44: 0 | M44: 0 | N44: 0
B45: GAUCHO FS600 100X50ML BOT IN | F45: 414 | G45: 0 | H45: 0 | I45: 0 | J45: 0 | K45: 0 | L45: 0 | M45: 0 | N45: 414
B46: GAUCHO FS600 40X250ML BOT IN | F46: 40 | G46: 0 | H46: 0 | I46: 0 | J46: 0 | K46: 0 | L46: 0 | M46: 0 | N46: 40
B47: GAUCHO FS600 50X100ML BOT IN | F47: 205 | G47: 0 | H47: 0 | I47: 0 | J47: 0 | K47: 0 | L47: 0 | M47: 0 | N47: 205
B48: JUMP WG80 160X(10X2GR) BAG IN | F48: 0 | G48: 0 | H48: 0 | I48: 0 | J48: 0 | K48: 0 | L48: 0 | M48: 0 | N48: 0
B49: JUMP WG80 80X40GR BAG IN | F49: 4 | G49: 0 | H49: 0 | I49: 0 | J49: 0 | K49: 0 | L49: 0 | M49: 0 | N49: 4
B50: LARVIN (T) WP75 10X1KG BAG IN | F50: 18 | G50: 0 | H50: 0 | I50: 0 | J50: 0 | K50: 0 | L50: 0 | M50: 0 | N50: 18
B51: LARVIN (T) WP75 20X250GR BAG IN | F51: 170 | G51: 0 | H51: 0 | I51: 5 | J51: 0 | K51: 0 | L51: 0 | M51: 0 | N51: 165
B52: LARVIN (T) WP75 20X500GR BAG IN | F52: 174 | G52: 0 | H52: 0 | I52: 2 | J52: 0 | K52: 0 | L52: 0 | M52: 0 | N52: 172
B53: LARVIN (T) WP75 40X100GR BAG IN | F53: 78 | G53: 0 | H53: 0 | I53: 0 | J53: 0 | K53: 0 | L53: 0 | M53: 0 | N53: 78
B54: LAUDIS SC630 10X57.5ML BOT IN | F54: 10 | G54: 0 | H54: 0 | I54: 0 | J54: 0 | K54: 0 | L54: 0 | M54: 0 | N54: 10
B55: LAUDIS SC630 8X115ML BOT IN | F55: 0 | G55: 0 | H55: 0 | I55: 0 | J55: 0 | K55: 0 | L55: 0 | M55: 0 | N55: 0
B56: LESENTA WG80 100X40GR BAG IN | F56: 0 | G56: 0 | H56: 0 | I56: 0 | J56: 0 | K56: 0 | L56: 0 | M56: 0 | N56: 0
B57: LESENTA WG80 50X100GR BAG IN | F57: 0 | G57: 0 | H57: 0 | I57: 0 | J57: 0 | K57: 0 | L57: 0 | M57: 0 | N57: 0
B58: MOVENTO ENERGY SC240 40X250ML BOT IN | F58: 61 | G58: 0 | H58: 0 | I58: 3 | J58: 0 | K58: 0 | L58: 0 | M58: 0 | N58: 58
B59: MOVENTO ENERGY SC240 50X100ML BOT IN | F59: 1 | G59: 0 | H59: 0 | I59: 0 | J59: 0 | K59: 0 | L59: 0 | M59: 0 | N59: 1
B60: NATIVO WG75 100X50GR BAG IN | F60: 432 | G60: 0 | H60: 0 | I60: 58 | J60: 0 | K60: 0 | L60: 0 | M60: 0 | N60: 374
B61: NATIVO WG75 20X500GR BAG IN | F61: 0 | G61: 0 | H61: 0 | I61: 1 | J61: 0 | K61: 0 | L61: 0 | M61: 0 | N61: -1
B62: NATIVO WG75 40X250GR BAG IN | F62: 334 | G62: 0 | H62: 0 | I62: 8 | J62: 0 | K62: 0 | L62: 0 | M62: 0 | N62: 326
B63: NATIVO WG75 50X100GR BAG IN | F63: 828 | G63: 0 | H63: 0 | I63: 10 | J63: 0 | K63: 0 | L63: 0 | M63: 0 | N63: 818
B64: OBERON (T) SC240 20X500ML BOT IN | F64: 0 | G64: 0 | H64: 0 | I64: 0 | J64: 0 | K64: 0 | L64: 0 | M64: 0 | N64: 0
B65: OBERON (T) SC240 40X200ML BOT IN | F65: 33 | G65: 0 | H65: 0 | I65: 2 | J65: 0 | K65: 0 | L65: 0 | M65: 0 | N65: 31
B66: PLANOFIX SL4 5 20X500ML BOT IN | F66: 0 | G66: 0 | H66: 0 | I66: 0 | J66: 0 | K66: 0 | L66: 0 | M66: 0 | N66: 0
B67: PLANOFIX SL4 5 40X250ML BOT IN | F67: 141 | G67: 0 | H67: 0 | I67: 0 | J67: 0 | K67: 0 | L67: 0 | M67: 0 | N67: 141
B68: PLANOFIX SL4 5 50X100ML BOT IN | F68: 100 | G68: 0 | H68: 0 | I68: 0 | J68: 0 | K68: 0 | L68: 0 | M68: 0 | N68: 100
B69: REGENT (T) SC50 10X1L BOT IN | F69: 230 | G69: 0 | H69: 0 | I69: 2 | J69: 0 | K69: 0 | L69: 0 | M69: 0 | N69: 228
B70: REGENT (T) SC50 20X250ML BOT IN | F70: 536 | G70: 0 | H70: 0 | I70: 50 | J70: 0 | K70: 0 | L70: 0 | M70: 0 | N70: 486
B71: REGENT (T) SC50 20X500ML BOT IN | F71: 537 | G71: 0 | H71: 0 | I71: 24 | J71: 0 | K71: 0 | L71: 0 | M71: 0 | N71: 513
B72: REGENT GOLD SC200 20X500ML BOT IN | F72: 67 | G72: 0 | H72: 0 | I72: 0 | J72: 0 | K72: 0 | L72: 0 | M72: 0 | N72: 67
B73: REGENT GOLD SC200 40X250ML BOT IN | F73: 82 | G73: 0 | H73: 0 | I73: 0 | J73: 0 | K73: 0 | L73: 0 | M73: 0 | N73: 82
B74: REGENT GR0 3 20X1KG BAG IN | F74: 0 | G74: 0 | H74: 0 | I74: 0 | J74: 0 | K74: 0 | L74: 0 | M74: 0 | N74: 0
B75: SECTIN WG60 50X100GR BAG IN | F75: 0 | G75: 0 | H75: 0 | I75: 0 | J75: 0 | K75: 0 | L75: 0 | M75: 0 | N75: 0
B76: SENCOR WP70 60X100GR BAG IN | F76: 0 | G76: 0 | H76: 0 | I76: 0 | J76: 0 | K76: 0 | L76: 0 | M76: 0 | N76: 0
B77: SIVANTO PRIME SL200 40X250ML BOT IN | F77: 2 | G77: 0 | H77: 0 | I77: 0 | J77: 0 | K77: 0 | L77: 0 | M77: 0 | N77: 2
B78: SOLOMON OD300 10X1L BOT IN | F78: 0 | G78: 0 | H78: 0 | I78: 0 | J78: 0 | K78: 0 | L78: 0 | M78: 0 | N78: 0
B79: SOLOMON OD300 20X500ML BOT IN | F79: 3 | G79: 0 | H79: 0 | I79: 0 | J79: 0 | K79: 0 | L79: 0 | M79: 0 | N79: 3
B80: SOLOMON OD300 40X250ML BOT IN | F80: 0 | G80: 0 | H80: 0 | I80: 0 | J80: 0 | K80: 0 | L80: 0 | M80: 0 | N80: 0
B81: SOLOMON OD300 50X100ML BOT IN | F81: 0 | G81: 0 | H81: 0 | I81: 0 | J81: 0 | K81: 0 | L81: 0 | M81: 0 | N81: 0
B82: SPINTOR SC495 10X(20X7ML) BOT IN | F82: 2 | G82: 0 | H82: 0 | I82: 0 | J82: 0 | K82: 0 | L82: 0 | M82: 0 | N82: 2
B83: SPINTOR SC495 20X75ML BOT IN | F83: 102 | G83: 0 | H83: 0 | I83: 0 | J83: 0 | K83: 0 | L83: 0 | M83: 0 | N83: 102
B84: WHIPSUPER (T) EC90 10X1L BOT IN | F84: 0 | G84: 0 | H84: 0 | I84: 0 | J84: 0 | K84: 0 | L84: 0 | M84: 0 | N84: 0
B85: WHIPSUPER (T) EC90 20X500ML BOT IN | F85: 20 | G85: 0 | H85: 0 | I85: 0 | J85: 0 | K85: 0 | L85: 0 | M85: 0 | N85: 20
B86: WHIPSUPER (T) EC90 40X250ML BOT IN | F86: 38 | G86: 0 | H86: 0 | I86: 0 | J86: 0 | K86: 0 | L86: 0 | M86: 0 | N86: 38
B87: Grand Total | F87: 13862 | G87: 0 | H87: 0 | I87: 334 | J87: 0 | K87: 0 | L87: 0 | M87: 0 | N87: 13528

Sheet Zylem SNS Report
A2: Company Name:-BAYER
A3: Stock and Sales FOR THE PERIOD 01-Jan-2020 TO 31-Mar-2020
A4: Generated on 6/18/2021 6:42:56 AM
A5: DISTRIBUTOR PRODUCTWISE
A6: OUTPUT IN : PIC,DETAILS AS : Column,CONSIDER : Voucher Date,INCLUDE VALIDATION : False
A7: DISTRIBUTOR:Shubham Krushi Kendra,
A8: DISTRIBUTOR | B8: SAPCODE | C8: PRODUCT | D8: ITEMALIAS | E8: Opening Qty | F8: Purchase Qty | G8: Purchase Return Qty | H8: Sales Qty | I8: Sales Return Qty | J8: Transfer Qty | K8: Consignment Qty | L8: Adjustment Qty | M8: CLSG
A9: Shubham Krushi Kendra | B9: 3923891 | C9: ADMIRE (T) WG70 150X30GR BOT IN | D9: 79234988 | E9: 702 | F9: 0 | G9: 0 | H9: 0 | I9: 0 | J9: 0 | K9: 0 | L9: 0 | M9: 702
A10: Shubham Krushi Kendra | B10: 3923891 | C10: ADMIRE (T) WG70 30X150GR BOT IN | D10: 79277857 | E10: 221 | F10: 0 | G10: 0 | H10: 2 | I10: 0 | J10: 0 | K10: 0 | L10: 0 | M10: 219
A11: Shubham Krushi Kendra | B11: 3923891 | C11: ADMIRE (T) WG70 60X75GR BOT IN | D11: 79297696 | E11: 749 | F11: 0 | G11: 0 | H11: 0 | I11: 0 | J11: 0 | K11: 0 | L11: 0 | M11: 749
A12: Shubham Krushi Kendra | B12: 3923891 | C12: ALANTO (T) SC240 40X250ML BOT IN | D12: 79915713 | E12: -1 | F12: 0 | G12: 0 | H12: 0 | I12: 0 | J12: 0 | K12: 0 | L12: 0 | M12: -1
A13: Shubham Krushi Kendra | B13: 3923891 | C13: ALANTO (T) SC240 50X100ML BOT IN | D13: 79901062 | E13: 2 | F13: 0 | G13: 0 | H13: 0 | I13: 0 | J13: 0 | K13: 0 | L13: 0 | M13: 2
A14: Shubham Krushi Kendra | B14: 3923891 | C14: ALIETTE WP80 20X250GR BAG IN | D14: 3822358 | E14: -10 | F14: 0 | G14: 0 | H14: 0 | I14: 0 | J14: 0 | K14: 0 | L14: 0 | M14: -10
A15: Shubham Krushi Kendra | B15: 3923891 | C15: ALIETTE WP80 20X500GR BAG IN | D15: 3822366 | E15: -14 | F15: 0 | G15: 0 | H15: 1 | I15: 0 | J15: 0 | K15: 0 | L15: 0 | M15: -15
A16: Shubham Krushi Kendra | B16: 3923891 | C16: ALIETTE WP80 40X100GR BAG IN | D16: 3822331 | E16: 13 | F16: 0 | G16: 0 | H16: 41 | I16: 0 | J16: 0 | K16: 0 | L16: 0 | M16: -28
A17: Shubham Krushi Kendra | B17: 3923891 | C17: AMBITION 10X1L BOT IN | D17: 86212544 | E17: 20 | F17: 0 | G17: 0 | H17: 0 | I17: 0 | J17: 0 | K17: 0 | L17: 0 | M17: 20
A18: Shubham Krushi Kendra | B18: 3923891 | C18: AMBITION 20X500ML BOT IN | D18: 86228564 | E18: 93 | F18: 0 | G18: 0 | H18: 0 | I18: 0 | J18: 0 | K18: 0 | L18: 0 | M18: 93
A19: Shubham Krushi Kendra | B19: 3923891 | C19: ANTRACOL (T) WP70 10X1KG BAG IN | D19: 6077322 | E19: 239 | F19: 0 | G19: 0 | H19: 0 | I19: 0 | J19: 0 | K19: 0 | L19: 0 | M19: 239
A20: Shubham Krushi Kendra | B20: 3923891 | C20: ANTRACOL (T) WP70 20X500GR BAG IN | D20: 5999978 | E20: 185 | F20: 0 | G20: 0 | H20: 0 | I20: 0 | J20: 0 | K20: 0 | L20: 0 | M20: 185
A21: Shubham Krushi Kendra | B21: 3923891 | C21: ANTRACOL (T) WP70 40X250GR BAG IN | D21: 6112179 | E21: 278 | F21: 0 | G21: 0 | H21: 51 | I21: 0 | J21: 0 | K21: 0 | L21: 0 | M21: 227
A22: Shubham Krushi Kendra | B22: 3923891 | C22: CONFIDOR (T) SL200 100X50ML BOT IN | D22: 5708361 | E22: 1147 | F22: 0 | G22: 0 | H22: 32 | I22: 0 | J22: 0 | K22: 0 | L22: 0 | M22: 1115
A23: Shubham Krushi Kendra | B23: 3923891 | C23: CONFIDOR (T) SL200 20X250ML BOT IN | D23: 5699494 | E23: 596 | F23: 0 | G23: 0 | H23: 0 | I23: 0 | J23: 0 | K23: 0 | L23: 0 | M23: 596
A24: Shubham Krushi Kendra | B24: 3923891 | C24: CONFIDOR (T) SL200 20X500ML BOT IN | D24: 5704439 | E24: 441 | F24: 0 | G24: 0 | H24: 0 | I24: 0 | J24: 0 | K24: 0 | L24: 0 | M24: 441
A25: Shubham Krushi Kendra | B25: 3923891 | C25: CONFIDOR (T) SL200 50X100ML BOT IN | D25: 5703475 | E25: 756 | F25: 0 | G25: 0 | H25: 10 | I25: 0 | J25: 0 | K25: 0 | L25: 0 | M25: 746
A26: Shubham Krushi Kendra | B26: 3923891 | C26: CONFIDOR SUPER (T) SC350 20X250ML BOT IN | D26: 79710852 | E26: 1349 | F26: 0 | G26: 0 | H26: 0 | I26: 0 | J26: 0 | K26: 0 | L26: 0 | M26: 1349
A27: Shubham Krushi Kendra | B27: 3923891 | C27: CONFIDOR SUPER (T) SC350 50X100ML BOT IN | D27: 79735219 | E27: 997 | F27: 0 | G27: 0 | H27: 0 | I27: 0 | J27: 0 | K27: 0 | L27: 0 | M27: 997
A28: Shubham Krushi Kendra | B28: 3923891 | C28: CONFIDOR SUPER (T) SC350 50X50ML BOT IN | D28: 79985169 | E28: 645 | F28: 0 | G28: 0 | H28: 9 | I28: 0 | J28: 0 | K28: 0 | L28: 0 | M28: 636
A29: Shubham Krushi Kendra | B29: 3923891 | C29: DECIS EC 28 40X250ML BOT IN | D29: 3823346 | E29: 4 | F29: 0 | G29: 0 | H29: 1 | I29: 0 | J29: 0 | K29: 0 | L29: 0 | M29: 3
A30: Shubham Krushi Kendra | B30: 3923891 | C30: ETHREL SL39 50X100ML BOT IN | D30: 4299026 | E30: 50 | F30: 0 | G30: 0 | H30: 12 | I30: 0 | J30: 0 | K30: 0 | L30: 0 | M30: 38
A31: Shubham Krushi Kendra | B31: 3923891 | C31: FAME (T) SC480 10X(20X10ML) BOT IN | D31: 79305885 | E31: 200 | F31: 0 | G31: 0 | H31: 0 | I31: 0 | J31: 0 | K31: 0 | L31: 0 | M31: 200
A32: Shubham Krushi Kendra | B32: 3923891 | C32: FAME (T) SC480 20X100ML BOT IN | D32: 79266197 | E32: 197 | F32: 0 | G32: 0 | H32: 2 | I32: 0 | J32: 0 | K32: 0 | L32: 0 | M32: 195
A33: Shubham Krushi Kendra | B33: 3923891 | C33: FAME (T) SC480 40X50ML BOT IN | D33: 79224699 | E33: 195 | F33: 0 | G33: 0 | H33: 5 | I33: 0 | J33: 0 | K33: 0 | L33: 0 | M33: 190
A34: Shubham Krushi Kendra | B34: 3923891 | C34: FAME (T) SC480 8X250ML BOT IN | D34: 80183291 | E34: 44 | F34: 0 | G34: 0 | H34: 2 | I34: 0 | J34: 0 | K34: 0 | L34: 0 | M34: 42
A35: Shubham Krushi Kendra | B35: 3923891 | C35: FITREST SG5 16X250GR BOT IN | D35: 85408089 | E35: 11 | F35: 0 | G35: 0 | H35: 0 | I35: 0 | J35: 0 | K35: 0 | L35: 0 | M35: 11
A36: Shubham Krushi Kendra | B36: 3923891 | C36: FOLICUR (T) EC250 40X250ML BOT IN | D36: 79682271 | E36: 15 | F36: 0 | G36: 0 | H36: 0 | I36: 0 | J36: 0 | K36: 0 | L36: 0 | M36: 15
A37: Shubham Krushi Kendra | B37: 3923891 | C37: FOLICUR (T) EC250 50X100ML BOT IN | D37: 79629125 | E37: 54 | F37: 0 | G37: 0 | H37: 1 | I37: 0 | J37: 0 | K37: 0 | L37: 0 | M37: 53
A38: Shubham Krushi Kendra | B38: 3923891 | C38: FOOST WP50 20X250G BAG IN | D38: 85760270 | E38: 20 | F38: 0 | G38: 0 | H38: 0 | I38: 0 | J38: 0 | K38: 0 | L38: 0 | M38: 20
A39: Shubham Krushi Kendra | B39: 3923891 | C39: GAUCHO FS600 100X50ML BOT IN | D39: 80034733 | E39: 414 | F39: 0 | G39: 0 | H39: 0 | I39: 0 | J39: 0 | K39: 0 | L39: 0 | M39: 414
A40: Shubham Krushi Kendra | B40: 3923891 | C40: GAUCHO FS600 40X250ML BOT IN | D40: 84995681 | E40: 40 | F40: 0 | G40: 0 | H40: 0 | I40: 0 | J40: 0 | K40: 0 | L40: 0 | M40: 40
A41: Shubham Krushi Kendra | B41: 3923891 | C41: GAUCHO FS600 50X100ML BOT IN | D41: 79664141 | E41: 205 | F41: 0 | G41: 0 | H41: 0 | I41: 0 | J41: 0 | K41: 0 | L41: 0 | M41: 205
A42: Shubham Krushi Kendra | B42: 3923891 | C42: JUMP WG80 80X40GR BAG IN | D42: 79267509 | E42: 4 | F42: 0 | G42: 0 | H42: 0 | I42: 0 | J42: 0 | K42: 0 | L42: 0 | M42: 4
A43: Shubham Krushi Kendra | B43: 3923891 | C43: LARVIN (T) WP75 10X1KG BAG IN | D43: 6005062 | E43: 18 | F43: 0 | G43: 0 | H43: 0 | I43: 0 | J43: 0 | K43: 0 | L43: 0 | M43: 18
A44: Shubham Krushi Kendra | B44: 3923891 | C44: LARVIN (T) WP75 20X250GR BAG IN | D44: 6003167 | E44: 170 | F44: 0 | G44: 0 | H44: 5 | I44: 0 | J44: 0 | K44: 0 | L44: 0 | M44: 165
A45: Shubham Krushi Kendra | B45: 3923891 | C45: LARVIN (T) WP75 20X500GR BAG IN | D45: 6005291 | E45: 174 | F45: 0 | G45: 0 | H45: 2 | I45: 0 | J45: 0 | K45: 0 | L45: 0 | M45: 172
A46: Shubham Krushi Kendra | B46: 3923891 | C46: LARVIN (T) WP75 40X100GR BAG IN | D46: 5980436 | E46: 78 | F46: 0 | G46: 0 | H46: 0 | I46: 0 | J46: 0 | K46: 0 | L46: 0 | M46: 78
A47: Shubham Krushi Kendra | B47: 3923891 | C47: LAUDIS SC630 10X57.5ML BOT IN | D47: 84470481 | E47: 10 | F47: 0 | G47: 0 | H47: 0 | I47: 0 | J47: 0 | K47: 0 | L47: 0 | M47: 10
A48: Shubham Krushi Kendra | B48: 3923891 | C48: MOVENTO ENERGY SC240 40X250ML BOT IN | D48: 79679505 | E48: 61 | F48: 0 | G48: 0 | H48: 3 | I48: 0 | J48: 0 | K48: 0 | L48: 0 | M48: 58
A49: Shubham Krushi Kendra | B49: 3923891 | C49: MOVENTO ENERGY SC240 50X100ML BOT IN | D49: 79722605 | E49: 1 | F49: 0 | G49: 0 | H49: 0 | I49: 0 | J49: 0 | K49: 0 | L49: 0 | M49: 1
A50: Shubham Krushi Kendra | B50: 3923891 | C50: NATIVO WG75 100X50GR BAG IN | D50: 80580061 | E50: 432 | F50: 0 | G50: 0 | H50: 58 | I50: 0 | J50: 0 | K50: 0 | L50: 0 | M50: 374
A51: Shubham Krushi Kendra | B51: 3923891 | C51: NATIVO WG75 20X500GR BAG IN | D51: 79198698 | E51: 0 | F51: 0 | G51: 0 | H51: 1 | I51: 0 | J51: 0 | K51: 0 | L51: 0 | M51: -1
A52: Shubham Krushi Kendra | B52: 3923891 | C52: NATIVO WG75 40X250GR BAG IN | D52: 79237790 | E52: 334 | F52: 0 | G52: 0 | H52: 8 | I52: 0 | J52: 0 | K52: 0 | L52: 0 | M52: 326
A53: Shubham Krushi Kendra | B53: 3923891 | C53: NATIVO WG75 50X100GR BAG IN | D53: 79304102 | E53: 828 | F53: 0 | G53: 0 | H53: 10 | I53: 0 | J53: 0 | K53: 0 | L53: 0 | M53: 818
A54: Shubham Krushi Kendra | B54: 3923891 | C54: OBERON (T) SC240 40X200ML BOT IN | D54: 79971362 | E54: 33 | F54: 0 | G54: 0 | H54: 2 | I54: 0 | J54: 0 | K54: 0 | L54: 0 | M54: 31
A55: Shubham Krushi Kendra | B55: 3923891 | C55: PLANOFIX SL4 5 40X250ML BOT IN | D55: 3825128 | E55: 141 | F55: 0 | G55: 0 | H55: 0 | I55: 0 | J55: 0 | K55: 0 | L55: 0 | M55: 141
A56: Shubham Krushi Kendra | B56: 3923891 | C56: PLANOFIX SL4 5 50X100ML BOT IN | D56: 3825098 | E56: 100 | F56: 0 | G56: 0 | H56: 0 | I56: 0 | J56: 0 | K56: 0 | L56: 0 | M56: 100
A57: Shubham Krushi Kendra | B57: 3923891 | C57: REGENT (T) SC50 20X250ML BOT IN | D57: 5976951 | E57: 536 | F57: 0 | G57: 0 | H57: 50 | I57: 0 | J57: 0 | K57: 0 | L57: 0 | M57: 486
A58: Shubham Krushi Kendra | B58: 3923891 | C58: REGENT (T) SC50 20X500ML BOT IN | D58: 5987678 | E58: 537 | F58: 0 | G58: 0 | H58: 24 | I58: 0 | J58: 0 | K58: 0 | L58: 0 | M58: 513
A59: Shubham Krushi Kendra | B59: 3923891 | C59: REGENT GOLD SC200 20X500ML BOT IN | D59: 81741565 | E59: 67 | F59: 0 | G59: 0 | H59: 0 | I59: 0 | J59: 0 | K59: 0 | L59: 0 | M59: 67
A60: Shubham Krushi Kendra | B60: 3923891 | C60: REGENT GOLD SC200 40X250ML BOT IN | D60: 84126616 | E60: 82 | F60: 0 | G60: 0 | H60: 0 | I60: 0 | J60: 0 | K60: 0 | L60: 0 | M60: 82
A61: Shubham Krushi Kendra | B61: 3923891 | C61: SIVANTO PRIME SL200 40X250ML BOT IN | D61: 80895909 | E61: 2 | F61: 0 | G61: 0 | H61: 0 | I61: 0 | J61: 0 | K61: 0 | L61: 0 | M61: 2
A62: Shubham Krushi Kendra | B62: 3923891 | C62: SOLOMON OD300 20X500ML BOT IN | D62: 79987870 | E62: 3 | F62: 0 | G62: 0 | H62: 0 | I62: 0 | J62: 0 | K62: 0 | L62: 0 | M62: 3
A63: Shubham Krushi Kendra | B63: 3923891 | C63: SPINTOR SC495 10X(20X7ML) BOT IN | D63: 84908770 | E63: 2 | F63: 0 | G63: 0 | H63: 0 | I63: 0 | J63: 0 | K63: 0 | L63: 0 | M63: 2
A64: Shubham Krushi Kendra | B64: 3923891 | C64: SPINTOR SC495 20X75ML BOT IN | D64: 3826566 | E64: 102 | F64: 0 | G64: 0 | H64: 0 | I64: 0 | J64: 0 | K64: 0 | L64: 0 | M64: 102
A65: Shubham Krushi Kendra | B65: 3923891 | C65: WHIPSUPER (T) EC90 20X500ML BOT IN | D65: 5955989 | E65: 20 | F65: 0 | G65: 0 | H65: 0 | I65: 0 | J65: 0 | K65: 0 | L65: 0 | M65: 20
A66: Shubham Krushi Kendra | B66: 3923891 | C66: WHIPSUPER (T) EC90 40X250ML BOT IN | D66: 5966131 | E66: 38 | F66: 0 | G66: 0 | H66: 0 | I66: 0 | J66: 0 | K66: 0 | L66: 0 | M66: 38
A67: Shubham Krushi Kendra | B67: 3923891 | C67: DECIS EC 28 50X100ML BOT IN | D67: 3823311 | E67: 2 | F67: 0 | G67: 0 | H67: 0 | I67: 0 | J67: 0 | K67: 0 | L67: 0 | M67: 2
A68: Shubham Krushi Kendra | B68: 3923891 | C68: REGENT (T) SC50 10X1L BOT IN | D68: 5962667 | E68: 230 | F68: 0 | G68: 0 | H68: 2 | I68: 0 | J68: 0 | K68: 0 | L68: 0 | M68: 228
A69: GRANDTOTAL | E69: 13862 | F69: 0 | G69: 0 | H69: 334 | I69: 0 | J69: 0 | K69: 0 | L69: 0 | M69: 13528

Sheet OPG
A1: ADMIRE (T) WG70 30X150GR BOT IN | B1: =VLOOKUP(A1,'[2]Product Master Sheet'!$B$2:$F$506,5,0) -> 14 | C1: 221
A2: ANTRACOL (T) WP70 40X250GR BAG IN | B2: =VLOOKUP(A2,'[2]Product Master Sheet'!$B$2:$F$506,5,0) -> 44 | C2: 278
A3: CONFIDOR (T) SL200 100X50ML BOT IN | B3: =VLOOKUP(A3,'[2]Product Master Sheet'!$B$2:$F$506,5,0) -> 112 | C3: 1147
A4: CONFIDOR (T) SL200 50X100ML BOT IN | B4: =VLOOKUP(A4,'[2]Product Master Sheet'!$B$2:$F$506,5,0) -> 116 | C4: 756
A5: CONFIDOR SUPER (T) SC350 50X50ML BOT IN | B5: =VLOOKUP(A5,'[2]Product Master Sheet'!$B$2:$F$506,5,0) -> 121 | C5: 645
A6: DECIS EC 28 40X250ML BOT IN | B6: =VLOOKUP(A6,'[2]Product Master Sheet'!$B$2:$F$506,5,0) -> 126 | C6: 4
A7: ETHREL SL39 50X100ML BOT IN | B7: =VLOOKUP(A7,'[2]Product Master Sheet'!$B$2:$F$506,5,0) -> 138 | C7: 50
A8: FAME (T) SC480 40X50ML BOT IN | B8: =VLOOKUP(A8,'[2]Product Master Sheet'!$B$2:$F$506,5,0) -> 146 | C8: 195
A9: FAME (T) SC480 8X250ML BOT IN | B9: =VLOOKUP(A9,'[2]Product Master Sheet'!$B$2:$F$506,5,0) -> 148 | C9: 44
A10: FOLICUR (T) EC250 50X100ML BOT IN | B10: =VLOOKUP(A10,'[2]Product Master Sheet'!$B$2:$F$506,5,0) -> 165 | C10: 54
A11: LARVIN (T) WP75 20X250GR BAG IN | B11: =VLOOKUP(A11,'[2]Product Master Sheet'!$B$2:$F$506,5,0) -> 205 | C11: 170
A12: LARVIN (T) WP75 20X500GR BAG IN | B12: =VLOOKUP(A12,'[2]Product Master Sheet'!$B$2:$F$506,5,0) -> 206 | C12: 174
A13: MOVENTO ENERGY SC240 40X250ML BOT IN | B13: =VLOOKUP(A13,'[2]Product Master Sheet'!$B$2:$F$506,5,0) -> 273 | C13: 61
A14: NATIVO WG75 100X50GR BAG IN | B14: =VLOOKUP(A14,'[2]Product Master Sheet'!$B$2:$F$506,5,0) -> 289 | C14: 432
A15: NATIVO WG75 20X500GR BAG IN | B15: =VLOOKUP(A15,'[2]Product Master Sheet'!$B$2:$F$506,5,0) -> 292 | C15: 0
A16: NATIVO WG75 40X250GR BAG IN | B16: =VLOOKUP(A16,'[2]Product Master Sheet'!$B$2:$F$506,5,0) -> 293 | C16: 334
A17: NATIVO WG75 50X100GR BAG IN | B17: =VLOOKUP(A17,'[2]Product Master Sheet'!$B$2:$F$506,5,0) -> 294 | C17: 828
A18: OBERON (T) SC240 40X200ML BOT IN | B18: =VLOOKUP(A18,'[2]Product Master Sheet'!$B$2:$F$506,5,0) -> 299 | C18: 33
A19: REGENT (T) SC50 20X250ML BOT IN | B19: =VLOOKUP(A19,'[2]Product Master Sheet'!$B$2:$F$506,5,0) -> 325 | C19: 536
A20: REGENT (T) SC50 20X500ML BOT IN | B20: =VLOOKUP(A20,'[2]Product Master Sheet'!$B$2:$F$506,5,0) -> 326 | C20: 537
A21: REGENT (T) SC50 10X1L BOT IN | B21: =VLOOKUP(A21,'[2]Product Master Sheet'!$B$2:$F$506,5,0) -> 324 | C21: 230
A22: ADMIRE (T) WG70 150X30GR BOT IN | B22: =VLOOKUP(A22,'[2]Product Master Sheet'!$B$2:$F$506,5,0) -> 13 | C22: 702
A23: ADMIRE (T) WG70 60X75GR BOT IN | B23: =VLOOKUP(A23,'[2]Product Master Sheet'!$B$2:$F$506,5,0) -> 15 | C23: 749
A24: ADUE WG70 3X200G BOT IN | B24: =VLOOKUP(A24,'[2]Product Master Sheet'!$B$2:$F$506,5,0) -> 25 | C24: 0
A25: ADUE WG70 6X100G BOT IN | B25: =VLOOKUP(A25,'[2]Product Master Sheet'!$B$2:$F$506,5,0) -> 26 | C25: 0
A26: ALANTO (T) SC240 20X500ML BOT IN | B26: =VLOOKUP(A26,'[2]Product Master Sheet'!$B$2:$F$506,5,0) -> 28 | C26: 0
A27: ALANTO (T) SC240 40X250ML BOT IN | B27: =VLOOKUP(A27,'[2]Product Master Sheet'!$B$2:$F$506,5,0) -> 29 | C27: -1
A28: ALANTO (T) SC240 50X100ML BOT IN | B28: =VLOOKUP(A28,'[2]Product Master Sheet'!$B$2:$F$506,5,0) -> 30 | C28: 2
A29: ALIETTE WP80 20X250GR BAG IN | B29: =VLOOKUP(A29,'[2]Product Master Sheet'!$B$2:$F$506,5,0) -> 33 | C29: -10
A30: ALIETTE WP80 20X500GR BAG IN | B30: =VLOOKUP(A30,'[2]Product Master Sheet'!$B$2:$F$506,5,0) -> 34 | C30: -14
A31: ALIETTE WP80 40X100GR BAG IN | B31: =VLOOKUP(A31,'[2]Product Master Sheet'!$B$2:$F$506,5,0) -> 35 | C31: 13
A32: AMBITION 10X1L BOT IN | B32: =VLOOKUP(A32,'[2]Product Master Sheet'!$B$2:$F$506,5,0) -> 39 | C32: 20
A33: AMBITION 20X500ML BOT IN | B33: =VLOOKUP(A33,'[2]Product Master Sheet'!$B$2:$F$506,5,0) -> 40 | C33: 93
A34: ANTRACOL (T) WP70 10X1KG BAG IN | B34: =VLOOKUP(A34,'[2]Product Master Sheet'!$B$2:$F$506,5,0) -> 42 | C34: 239
A35: ANTRACOL (T) WP70 20X500GR BAG IN | B35: =VLOOKUP(A35,'[2]Product Master Sheet'!$B$2:$F$506,5,0) -> 43 | C35: 185
A36: BELT EXPERT SC480 100X50ML BOT IN | B36: =VLOOKUP(A36,'[2]Product Master Sheet'!$B$2:$F$506,5,0) -> 107 | C36: 0
A37: BELT EXPERT SC480 40X250ML BOT IN | B37: =VLOOKUP(A37,'[2]Product Master Sheet'!$B$2:$F$506,5,0) -> 109 | C37: 0
A38: BELT EXPERT SC480 50X100ML BOT IN | B38: =VLOOKUP(A38,'[2]Product Master Sheet'!$B$2:$F$506,5,0) -> 111 | C38: 0
A39: CONFIDOR (T) SL200 20X250ML BOT IN | B39: =VLOOKUP(A39,'[2]Product Master Sheet'!$B$2:$F$506,5,0) -> 114 | C39: 596
A40: CONFIDOR (T) SL200 20X500ML BOT IN | B40: =VLOOKUP(A40,'[2]Product Master Sheet'!$B$2:$F$506,5,0) -> 115 | C40: 441
A41: CONFIDOR SUPER (T) SC350 20X250ML BOT IN | B41: =VLOOKUP(A41,'[2]Product Master Sheet'!$B$2:$F$506,5,0) -> 118 | C41: 1349
A42: CONFIDOR SUPER (T) SC350 50X100ML BOT IN | B42: =VLOOKUP(A42,'[2]Product Master Sheet'!$B$2:$F$506,5,0) -> 120 | C42: 997
A43: DECIS EC 28 20X500ML BOT IN | B43: =VLOOKUP(A43,'[2]Product Master Sheet'!$B$2:$F$506,5,0) -> 125 | C43: 0
A44: DECIS EC 28 50X100ML BOT IN | B44: =VLOOKUP(A44,'[2]Product Master Sheet'!$B$2:$F$506,5,0) -> 928 | C44: 2
A45: ETHREL SL39 20X500ML BOT IN | B45: =VLOOKUP(A45,'[2]Product Master Sheet'!$B$2:$F$506,5,0) -> 137 | C45: 0
A46: FAME (T) SC480 10X(20X10ML) BOT IN | B46: =VLOOKUP(A46,'[2]Product Master Sheet'!$B$2:$F$506,5,0) -> 144 | C46: 200
A47: FAME (T) SC480 20X100ML BOT IN | B47: =VLOOKUP(A47,'[2]Product Master Sheet'!$B$2:$F$506,5,0) -> 145 | C47: 197
A48: FITREST SG5 16X250GR BOT IN | B48: =VLOOKUP(A48,'[2]Product Master Sheet'!$B$2:$F$506,5,0) -> 154 | C48: 11
A49: FITREST SG5 40X100GR BOT IN | B49: =VLOOKUP(A49,'[2]Product Master Sheet'!$B$2:$F$506,5,0) -> 155 | C49: 0
A50: FOLICUR (T) EC250 20X500ML BOT IN | B50: =VLOOKUP(A50,'[2]Product Master Sheet'!$B$2:$F$506,5,0) -> 163 | C50: 0
A51: FOLICUR (T) EC250 40X250ML BOT IN | B51: =VLOOKUP(A51,'[2]Product Master Sheet'!$B$2:$F$506,5,0) -> 164 | C51: 15
A52: FOOST WP50 20X250G BAG IN | B52: =VLOOKUP(A52,'[2]Product Master Sheet'!$B$2:$F$506,5,0) -> 175 | C52: 20
A53: FOOST WP50 24X500G BAG IN | B53: =VLOOKUP(A53,'[2]Product Master Sheet'!$B$2:$F$506,5,0) -> 177 | C53: 0
A54: GAUCHO FS600 100X50ML BOT IN | B54: =VLOOKUP(A54,'[2]Product Master Sheet'!$B$2:$F$506,5,0) -> 179 | C54: 414
A55: GAUCHO FS600 40X250ML BOT IN | B55: =VLOOKUP(A55,'[2]Product Master Sheet'!$B$2:$F$506,5,0) -> 181 | C55: 40
A56: GAUCHO FS600 50X100ML BOT IN | B56: =VLOOKUP(A56,'[2]Product Master Sheet'!$B$2:$F$506,5,0) -> 182 | C56: 205
A57: JUMP WG80 160X(10X2GR) BAG IN | B57: =VLOOKUP(A57,'[2]Product Master Sheet'!$B$2:$F$506,5,0) -> 199 | C57: 0
A58: JUMP WG80 80X40GR BAG IN | B58: =VLOOKUP(A58,'[2]Product Master Sheet'!$B$2:$F$506,5,0) -> 202 | C58: 4
A59: LARVIN (T) WP75 10X1KG BAG IN | B59: =VLOOKUP(A59,'[2]Product Master Sheet'!$B$2:$F$506,5,0) -> 204 | C59: 18
A60: LARVIN (T) WP75 40X100GR BAG IN | B60: =VLOOKUP(A60,'[2]Product Master Sheet'!$B$2:$F$506,5,0) -> 207 | C60: 78
A61: LAUDIS SC630 10X57.5ML BOT IN | B61: =VLOOKUP(A61,'[2]Product Master Sheet'!$B$2:$F$506,5,0) -> 210 | C61: 10
A62: LAUDIS SC630 8X115ML BOT IN | B62: =VLOOKUP(A62,'[2]Product Master Sheet'!$B$2:$F$506,5,0) -> 212 | C62: 0
A63: LESENTA WG80 100X40GR BAG IN | B63: =VLOOKUP(A63,'[2]Product Master Sheet'!$B$2:$F$506,5,0) -> 215 | C63: 0
A64: LESENTA WG80 50X100GR BAG IN | B64: =VLOOKUP(A64,'[2]Product Master Sheet'!$B$2:$F$506,5,0) -> 219 | C64: 0
A65: MOVENTO ENERGY SC240 50X100ML BOT IN | B65: =VLOOKUP(A65,'[2]Product Master Sheet'!$B$2:$F$506,5,0) -> 274 | C65: 1
A66: OBERON (T) SC240 20X500ML BOT IN | B66: =VLOOKUP(A66,'[2]Product Master Sheet'!$B$2:$F$506,5,0) -> 297 | C66: 0
A67: PLANOFIX SL4 5 20X500ML BOT IN | B67: =VLOOKUP(A67,'[2]Product Master Sheet'!$B$2:$F$506,5,0) -> 305 | C67: 0
A68: PLANOFIX SL4 5 40X250ML BOT IN | B68: =VLOOKUP(A68,'[2]Product Master Sheet'!$B$2:$F$506,5,0) -> 306 | C68: 141
A69: PLANOFIX SL4 5 50X100ML BOT IN | B69: =VLOOKUP(A69,'[2]Product Master Sheet'!$B$2:$F$506,5,0) -> 307 | C69: 100
A70: REGENT GOLD SC200 20X500ML BOT IN | B70: =VLOOKUP(A70,'[2]Product Master Sheet'!$B$2:$F$506,5,0) -> 330 | C70: 67
A71: REGENT GOLD SC200 40X250ML BOT IN | B71: =VLOOKUP(A71,'[2]Product Master Sheet'!$B$2:$F$506,5,0) -> 331 | C71: 82
A72: REGENT GR0 3 20X1KG BAG IN | B72: =VLOOKUP(A72,'[2]Product Master Sheet'!$B$2:$F$506,5,0) -> 335 | C72: 0
A73: SECTIN WG60 50X100GR BAG IN | B73: =VLOOKUP(A73,'[2]Product Master Sheet'!$B$2:$F$506,5,0) -> 346 | C73: 0
A74: SENCOR WP70 60X100GR BAG IN | B74: =VLOOKUP(A74,'[2]Product Master Sheet'!$B$2:$F$506,5,0) -> 353 | C74: 0
A75: SIVANTO PRIME SL200 40X250ML BOT IN | B75: =VLOOKUP(A75,'[2]Product Master Sheet'!$B$2:$F$506,5,0) -> 361 | C75: 2
A76: SOLOMON OD300 10X1L BOT IN | B76: =VLOOKUP(A76,'[2]Product Master Sheet'!$B$2:$F$506,5,0) -> 365 | C76: 0
A77: SOLOMON OD300 20X500ML BOT IN | B77: =VLOOKUP(A77,'[2]Product Master Sheet'!$B$2:$F$506,5,0) -> 366 | C77: 3
A78: SOLOMON OD300 40X250ML BOT IN | B78: =VLOOKUP(A78,'[2]Product Master Sheet'!$B$2:$F$506,5,0) -> 368 | C78: 0
A79: SOLOMON OD300 50X100ML BOT IN | B79: =VLOOKUP(A79,'[2]Product Master Sheet'!$B$2:$F$506,5,0) -> 370 | C79: 0
A80: SPINTOR SC495 10X(20X7ML) BOT IN | B80: =VLOOKUP(A80,'[2]Product Master Sheet'!$B$2:$F$506,5,0) -> 372 | C80: 2
A81: SPINTOR SC495 20X75ML BOT IN | B81: =VLOOKUP(A81,'[2]Product Master Sheet'!$B$2:$F$506,5,0) -> 373 | C81: 102
A82: WHIPSUPER (T) EC90 10X1L BOT IN | B82: =VLOOKUP(A82,'[2]Product Master Sheet'!$B$2:$F$506,5,0) -> 403 | C82: 0
A83: WHIPSUPER (T) EC90 20X500ML BOT IN | B83: =VLOOKUP(A83,'[2]Product Master Sheet'!$B$2:$F$506,5,0) -> 404 | C83: 20
A84: WHIPSUPER (T) EC90 40X250ML BOT IN | B84: =VLOOKUP(A84,'[2]Product Master Sheet'!$B$2:$F$506,5,0) -> 405 | C84: 38

Sheet Reco
B1: Zylem Report -01-Jan-2020 TO 31-Mar-2020 | K1: Dealer Report -01-Jan-2020 TO 31-Mar-2020 | T1: Difference (+/-)
A3: DEALER CODE | B3: Opening Qty | C3: Purchase Qty | D3: Purchase Return Qty | E3: Sales Qty | F3: Sales Return Qty | G3: Transfer Qty | H3: Consignment Qty | I3: Adjustment Qty | J3: CLSG | K3: Opening Qty | L3: Purchase Qty | M3: Purchase Return Qty | N3: Sales Qty | O3: Sales Return Qty | P3: Transfer Qty | Q3: Consignment Qty | R3: Adjustment Qty | S3: CLSG | T3: Opening Stock Qty | U3: Purchase Qty | V3: Purchase Return Qty | W3: Sales Qty | X3: Sales Return Qty | Y3: Transfer Qty | Z3: Consignment Qty | AA3: Adjustments Qty | AB3: CLSG | AC3: Remark
A4: ADMIRE (T) WG70 150X30GR BOT IN | B4: 702 | C4: 0 | D4: 0 | E4: 0 | F4: 0 | G4: 0 | H4: 0 | I4: 0 | J4: 702 | K4: 702 | L4: 0 | M4: 0 | N4: 0 | O4: 0 | P4: 0 | Q4: 0 | R4: 0 | S4: 702 | T4: 0 | U4: 0 | V4: 0 | W4: 0 | X4: 0 | Y4: 0 | Z4: 0 | AA4: 0 | AB4: 0 | AC4: Ok
A5: ADMIRE (T) WG70 30X150GR BOT IN | B5: 221 | C5: 0 | D5: 0 | E5: 2 | F5: 0 | G5: 0 | H5: 0 | I5: 0 | J5: 219 | K5: 221 | L5: 0 | M5: 0 | N5: 2 | O5: 0 | P5: 0 | Q5: 0 | R5: 0 | S5: 219 | T5: 0 | U5: 0 | V5: 0 | W5: 0 | X5: 0 | Y5: 0 | Z5: 0 | AA5: 0 | AB5: 0 | AC5: Ok
A6: ADMIRE (T) WG70 60X75GR BOT IN | B6: 749 | C6: 0 | D6: 0 | E6: 0 | F6: 0 | G6: 0 | H6: 0 | I6: 0 | J6: 749 | K6: 749 | L6: 0 | M6: 0 | N6: 0 | O6: 0 | P6: 0 | Q6: 0 | R6: 0 | S6: 749 | T6: 0 | U6: 0 | V6: 0 | W6: 0 | X6: 0 | Y6: 0 | Z6: 0 | AA6: 0 | AB6: 0 | AC6: Ok
A7: ALANTO (T) SC240 40X250ML BOT IN | B7: -1 | C7: 0 | D7: 0 | E7: 0 | F7: 0 | G7: 0 | H7: 0 | I7: 0 | J7: -1 | K7: -1 | L7: 0 | M7: 0 | N7: 0 | O7: 0 | P7: 0 | Q7: 0 | R7: 0 | S7: -1 | T7: 0 | U7: 0 | V7: 0 | W7: 0 | X7: 0 | Y7: 0 | Z7: 0 | AA7: 0 | AB7: 0 | AC7: Ok
A8: ALANTO (T) SC240 50X100ML BOT IN | B8: 2 | C8: 0 | D8: 0 | E8: 0 | F8: 0 | G8: 0 | H8: 0 | I8: 0 | J8: 2 | K8: 2 | L8: 0 | M8: 0 | N8: 0 | O8: 0 | P8: 0 | Q8: 0 | R8: 0 | S8: 2 | T8: 0 | U8: 0 | V8: 0 | W8: 0 | X8: 0 | Y8: 0 | Z8: 0 | AA8: 0 | AB8: 0 | AC8: Ok
A9: ALIETTE WP80 20X250GR BAG IN | B9: -10 | C9: 0 | D9: 0 | E9: 0 | F9: 0 | G9: 0 | H9: 0 | I9: 0 | J9: -10 | K9: -10 | L9: 0 | M9: 0 | N9: 0 | O9: 0 | P9: 0 | Q9: 0 | R9: 0 | S9: -10 | T9: 0 | U9: 0 | V9: 0 | W9: 0 | X9: 0 | Y9: 0 | Z9: 0 | AA9: 0 | AB9: 0 | AC9: Ok
A10: ALIETTE WP80 20X500GR BAG IN | B10: -14 | C10: 0 | D10: 0 | E10: 1 | F10: 0 | G10: 0 | H10: 0 | I10: 0 | J10: -15 | K10: -14 | L10: 0 | M10: 0 | N10: 1 | O10: 0 | P10: 0 | Q10: 0 | R10: 0 | S10: -15 | T10: 0 | U10: 0 | V10: 0 | W10: 0 | X10: 0 | Y10: 0 | Z10: 0 | AA10: 0 | AB10: 0 | AC10: Ok
A11: ALIETTE WP80 40X100GR BAG IN | B11: 13 | C11: 0 | D11: 0 | E11: 41 | F11: 0 | G11: 0 | H11: 0 | I11: 0 | J11: -28 | K11: 13 | L11: 0 | M11: 0 | N11: 41 | O11: 0 | P11: 0 | Q11: 0 | R11: 0 | S11: -28 | T11: 0 | U11: 0 | V11: 0 | W11: 0 | X11: 0 | Y11: 0 | Z11: 0 | AA11: 0 | AB11: 0 | AC11: Ok
A12: AMBITION 10X1L BOT IN | B12: 20 | C12: 0 | D12: 0 | E12: 0 | F12: 0 | G12: 0 | H12: 0 | I12: 0 | J12: 20 | K12: 20 | L12: 0 | M12: 0 | N12: 0 | O12: 0 | P12: 0 | Q12: 0 | R12: 0 | S12: 20 | T12: 0 | U12: 0 | V12: 0 | W12: 0 | X12: 0 | Y12: 0 | Z12: 0 | AA12: 0 | AB12: 0 | AC12: Ok
A13: AMBITION 20X500ML BOT IN | B13: 93 | C13: 0 | D13: 0 | E13: 0 | F13: 0 | G13: 0 | H13: 0 | I13: 0 | J13: 93 | K13: 93 | L13: 0 | M13: 0 | N13: 0 | O13: 0 | P13: 0 | Q13: 0 | R13: 0 | S13: 93 | T13: 0 | U13: 0 | V13: 0 | W13: 0 | X13: 0 | Y13: 0 | Z13: 0 | AA13: 0 | AB13: 0 | AC13: Ok
A14: ANTRACOL (T) WP70 10X1KG BAG IN | B14: 239 | C14: 0 | D14: 0 | E14: 0 | F14: 0 | G14: 0 | H14: 0 | I14: 0 | J14: 239 | K14: 239 | L14: 0 | M14: 0 | N14: 0 | O14: 0 | P14: 0 | Q14: 0 | R14: 0 | S14: 239 | T14: 0 | U14: 0 | V14: 0 | W14: 0 | X14: 0 | Y14: 0 | Z14: 0 | AA14: 0 | AB14: 0 | AC14: Ok
A15: ANTRACOL (T) WP70 20X500GR BAG IN | B15: 185 | C15: 0 | D15: 0 | E15: 0 | F15: 0 | G15: 0 | H15: 0 | I15: 0 | J15: 185 | K15: 185 | L15: 0 | M15: 0 | N15: 0 | O15: 0 | P15: 0 | Q15: 0 | R15: 0 | S15: 185 | T15: 0 | U15: 0 | V15: 0 | W15: 0 | X15: 0 | Y15: 0 | Z15: 0 | AA15: 0 | AB15: 0 | AC15: Ok
A16: ANTRACOL (T) WP70 40X250GR BAG IN | B16: 278 | C16: 0 | D16: 0 | E16: 51 | F16: 0 | G16: 0 | H16: 0 | I16: 0 | J16: 227 | K16: 278 | L16: 0 | M16: 0 | N16: 51 | O16: 0 | P16: 0 | Q16: 0 | R16: 0 | S16: 227 | T16: 0 | U16: 0 | V16: 0 | W16: 0 | X16: 0 | Y16: 0 | Z16: 0 | AA16: 0 | AB16: 0 | AC16: Ok
A17: CONFIDOR (T) SL200 100X50ML BOT IN | B17: 1147 | C17: 0 | D17: 0 | E17: 32 | F17: 0 | G17: 0 | H17: 0 | I17: 0 | J17: 1115 | K17: 1147 | L17: 0 | M17: 0 | N17: 32 | O17: 0 | P17: 0 | Q17: 0 | R17: 0 | S17: 1115 | T17: 0 | U17: 0 | V17: 0 | W17: 0 | X17: 0 | Y17: 0 | Z17: 0 | AA17: 0 | AB17: 0 | AC17: Ok
A18: CONFIDOR (T) SL200 20X250ML BOT IN | B18: 596 | C18: 0 | D18: 0 | E18: 0 | F18: 0 | G18: 0 | H18: 0 | I18: 0 | J18: 596 | K18: 596 | L18: 0 | M18: 0 | N18: 0 | O18: 0 | P18: 0 | Q18: 0 | R18: 0 | S18: 596 | T18: 0 | U18: 0 | V18: 0 | W18: 0 | X18: 0 | Y18: 0 | Z18: 0 | AA18: 0 | AB18: 0 | AC18: Ok
A19: CONFIDOR (T) SL200 20X500ML BOT IN | B19: 441 | C19: 0 | D19: 0 | E19: 0 | F19: 0 | G19: 0 | H19: 0 | I19: 0 | J19: 441 | K19: 441 | L19: 0 | M19: 0 | N19: 0 | O19: 0 | P19: 0 | Q19: 0 | R19: 0 | S19: 441 | T19: 0 | U19: 0 | V19: 0 | W19: 0 | X19: 0 | Y19: 0 | Z19: 0 | AA19: 0 | AB19: 0 | AC19: Ok
A20: CONFIDOR (T) SL200 50X100ML BOT IN | B20: 756 | C20: 0 | D20: 0 | E20: 10 | F20: 0 | G20: 0 | H20: 0 | I20: 0 | J20: 746 | K20: 756 | L20: 0 | M20: 0 | N20: 10 | O20: 0 | P20: 0 | Q20: 0 | R20: 0 | S20: 746 | T20: 0 | U20: 0 | V20: 0 | W20: 0 | X20: 0 | Y20: 0 | Z20: 0 | AA20: 0 | AB20: 0 | AC20: Ok
A21: CONFIDOR SUPER (T) SC350 20X250ML BOT IN | B21: 1349 | C21: 0 | D21: 0 | E21: 0 | F21: 0 | G21: 0 | H21: 0 | I21: 0 | J21: 1349 | K21: 1349 | L21: 0 | M21: 0 | N21: 0 | O21: 0 | P21: 0 | Q21: 0 | R21: 0 | S21: 1349 | T21: 0 | U21: 0 | V21: 0 | W21: 0 | X21: 0 | Y21: 0 | Z21: 0 | AA21: 0 | AB21: 0 | AC21: Ok
A22: CONFIDOR SUPER (T) SC350 50X100ML BOT IN | B22: 997 | C22: 0 | D22: 0 | E22: 0 | F22: 0 | G22: 0 | H22: 0 | I22: 0 | J22: 997 | K22: 997 | L22: 0 | M22: 0 | N22: 0 | O22: 0 | P22: 0 | Q22: 0 | R22: 0 | S22: 997 | T22: 0 | U22: 0 | V22: 0 | W22: 0 | X22: 0 | Y22: 0 | Z22: 0 | AA22: 0 | AB22: 0 | AC22: Ok
A23: CONFIDOR SUPER (T) SC350 50X50ML BOT IN | B23: 645 | C23: 0 | D23: 0 | E23: 9 | F23: 0 | G23: 0 | H23: 0 | I23: 0 | J23: 636 | K23: 645 | L23: 0 | M23: 0 | N23: 9 | O23: 0 | P23: 0 | Q23: 0 | R23: 0 | S23: 636 | T23: 0 | U23: 0 | V23: 0 | W23: 0 | X23: 0 | Y23: 0 | Z23: 0 | AA23: 0 | AB23: 0 | AC23: Ok
A24: DECIS EC 28 40X250ML BOT IN | B24: 4 | C24: 0 | D24: 0 | E24: 1 | F24: 0 | G24: 0 | H24: 0 | I24: 0 | J24: 3 | K24: 4 | L24: 0 | M24: 0 | N24: 1 | O24: 0 | P24: 0 | Q24: 0 | R24: 0 | S24: 3 | T24: 0 | U24: 0 | V24: 0 | W24: 0 | X24: 0 | Y24: 0 | Z24: 0 | AA24: 0 | AB24: 0 | AC24: Ok
A25: ETHREL SL39 50X100ML BOT IN | B25: 50 | C25: 0 | D25: 0 | E25: 12 | F25: 0 | G25: 0 | H25: 0 | I25: 0 | J25: 38 | K25: 50 | L25: 0 | M25: 0 | N25: 12 | O25: 0 | P25: 0 | Q25: 0 | R25: 0 | S25: 38 | T25: 0 | U25: 0 | V25: 0 | W25: 0 | X25: 0 | Y25: 0 | Z25: 0 | AA25: 0 | AB25: 0 | AC25: Ok
A26: FAME (T) SC480 10X(20X10ML) BOT IN | B26: 200 | C26: 0 | D26: 0 | E26: 0 | F26: 0 | G26: 0 | H26: 0 | I26: 0 | J26: 200 | K26: 200 | L26: 0 | M26: 0 | N26: 0 | O26: 0 | P26: 0 | Q26: 0 | R26: 0 | S26: 200 | T26: 0 | U26: 0 | V26: 0 | W26: 0 | X26: 0 | Y26: 0 | Z26: 0 | AA26: 0 | AB26: 0 | AC26: Ok
A27: FAME (T) SC480 20X100ML BOT IN | B27: 197 | C27: 0 | D27: 0 | E27: 2 | F27: 0 | G27: 0 | H27: 0 | I27: 0 | J27: 195 | K27: 197 | L27: 0 | M27: 0 | N27: 2 | O27: 0 | P27: 0 | Q27: 0 | R27: 0 | S27: 195 | T27: 0 | U27: 0 | V27: 0 | W27: 0 | X27: 0 | Y27: 0 | Z27: 0 | AA27: 0 | AB27: 0 | AC27: Ok
A28: FAME (T) SC480 40X50ML BOT IN | B28: 195 | C28: 0 | D28: 0 | E28: 5 | F28: 0 | G28: 0 | H28: 0 | I28: 0 | J28: 190 | K28: 195 | L28: 0 | M28: 0 | N28: 5 | O28: 0 | P28: 0 | Q28: 0 | R28: 0 | S28: 190 | T28: 0 | U28: 0 | V28: 0 | W28: 0 | X28: 0 | Y28: 0 | Z28: 0 | AA28: 0 | AB28: 0 | AC28: Ok
A29: FAME (T) SC480 8X250ML BOT IN | B29: 44 | C29: 0 | D29: 0 | E29: 2 | F29: 0 | G29: 0 | H29: 0 | I29: 0 | J29: 42 | K29: 44 | L29: 0 | M29: 0 | N29: 2 | O29: 0 | P29: 0 | Q29: 0 | R29: 0 | S29: 42 | T29: 0 | U29: 0 | V29: 0 | W29: 0 | X29: 0 | Y29: 0 | Z29: 0 | AA29: 0 | AB29: 0 | AC29: Ok
A30: FITREST SG5 16X250GR BOT IN | B30: 11 | C30: 0 | D30: 0 | E30: 0 | F30: 0 | G30: 0 | H30: 0 | I30: 0 | J30: 11 | K30: 11 | L30: 0 | M30: 0 | N30: 0 | O30: 0 | P30: 0 | Q30: 0 | R30: 0 | S30: 11 | T30: 0 | U30: 0 | V30: 0 | W30: 0 | X30: 0 | Y30: 0 | Z30: 0 | AA30: 0 | AB30: 0 | AC30: Ok
A31: FOLICUR (T) EC250 40X250ML BOT IN | B31: 15 | C31: 0 | D31: 0 | E31: 0 | F31: 0 | G31: 0 | H31: 0 | I31: 0 | J31: 15 | K31: 15 | L31: 0 | M31: 0 | N31: 0 | O31: 0 | P31: 0 | Q31: 0 | R31: 0 | S31: 15 | T31: 0 | U31: 0 | V31: 0 | W31: 0 | X31: 0 | Y31: 0 | Z31: 0 | AA31: 0 | AB31: 0 | AC31: Ok
A32: FOLICUR (T) EC250 50X100ML BOT IN | B32: 54 | C32: 0 | D32: 0 | E32: 1 | F32: 0 | G32: 0 | H32: 0 | I32: 0 | J32: 53 | K32: 54 | L32: 0 | M32: 0 | N32: 1 | O32: 0 | P32: 0 | Q32: 0 | R32: 0 | S32: 53 | T32: 0 | U32: 0 | V32: 0 | W32: 0 | X32: 0 | Y32: 0 | Z32: 0 | AA32: 0 | AB32: 0 | AC32: Ok
A33: FOOST WP50 20X250G BAG IN | B33: 20 | C33: 0 | D33: 0 | E33: 0 | F33: 0 | G33: 0 | H33: 0 | I33: 0 | J33: 20 | K33: 20 | L33: 0 | M33: 0 | N33: 0 | O33: 0 | P33: 0 | Q33: 0 | R33: 0 | S33: 20 | T33: 0 | U33: 0 | V33: 0 | W33: 0 | X33: 0 | Y33: 0 | Z33: 0 | AA33: 0 | AB33: 0 | AC33: Ok
A34: GAUCHO FS600 100X50ML BOT IN | B34: 414 | C34: 0 | D34: 0 | E34: 0 | F34: 0 | G34: 0 | H34: 0 | I34: 0 | J34: 414 | K34: 414 | L34: 0 | M34: 0 | N34: 0 | O34: 0 | P34: 0 | Q34: 0 | R34: 0 | S34: 414 | T34: 0 | U34: 0 | V34: 0 | W34: 0 | X34: 0 | Y34: 0 | Z34: 0 | AA34: 0 | AB34: 0 | AC34: Ok
A35: GAUCHO FS600 40X250ML BOT IN | B35: 40 | C35: 0 | D35: 0 | E35: 0 | F35: 0 | G35: 0 | H35: 0 | I35: 0 | J35: 40 | K35: 40 | L35: 0 | M35: 0 | N35: 0 | O35: 0 | P35: 0 | Q35: 0 | R35: 0 | S35: 40 | T35: 0 | U35: 0 | V35: 0 | W35: 0 | X35: 0 | Y35: 0 | Z35: 0 | AA35: 0 | AB35: 0 | AC35: Ok
A36: GAUCHO FS600 50X100ML BOT IN | B36: 205 | C36: 0 | D36: 0 | E36: 0 | F36: 0 | G36: 0 | H36: 0 | I36: 0 | J36: 205 | K36: 205 | L36: 0 | M36: 0 | N36: 0 | O36: 0 | P36: 0 | Q36: 0 | R36: 0 | S36: 205 | T36: 0 | U36: 0 | V36: 0 | W36: 0 | X36: 0 | Y36: 0 | Z36: 0 | AA36: 0 | AB36: 0 | AC36: Ok
A37: JUMP WG80 80X40GR BAG IN | B37: 4 | C37: 0 | D37: 0 | E37: 0 | F37: 0 | G37: 0 | H37: 0 | I37: 0 | J37: 4 | K37: 4 | L37: 0 | M37: 0 | N37: 0 | O37: 0 | P37: 0 | Q37: 0 | R37: 0 | S37: 4 | T37: 0 | U37: 0 | V37: 0 | W37: 0 | X37: 0 | Y37: 0 | Z37: 0 | AA37: 0 | AB37: 0 | AC37: Ok
A38: LARVIN (T) WP75 10X1KG BAG IN | B38: 18 | C38: 0 | D38: 0 | E38: 0 | F38: 0 | G38: 0 | H38: 0 | I38: 0 | J38: 18 | K38: 18 | L38: 0 | M38: 0 | N38: 0 | O38: 0 | P38: 0 | Q38: 0 | R38: 0 | S38: 18 | T38: 0 | U38: 0 | V38: 0 | W38: 0 | X38: 0 | Y38: 0 | Z38: 0 | AA38: 0 | AB38: 0 | AC38: Ok
A39: LARVIN (T) WP75 20X250GR BAG IN | B39: 170 | C39: 0 | D39: 0 | E39: 5 | F39: 0 | G39: 0 | H39: 0 | I39: 0 | J39: 165 | K39: 170 | L39: 0 | M39: 0 | N39: 5 | O39: 0 | P39: 0 | Q39: 0 | R39: 0 | S39: 165 | T39: 0 | U39: 0 | V39: 0 | W39: 0 | X39: 0 | Y39: 0 | Z39: 0 | AA39: 0 | AB39: 0 | AC39: Ok
A40: LARVIN (T) WP75 20X500GR BAG IN | B40: 174 | C40: 0 | D40: 0 | E40: 2 | F40: 0 | G40: 0 | H40: 0 | I40: 0 | J40: 172 | K40: 174 | L40: 0 | M40: 0 | N40: 2 | O40: 0 | P40: 0 | Q40: 0 | R40: 0 | S40: 172 | T40: 0 | U40: 0 | V40: 0 | W40: 0 | X40: 0 | Y40: 0 | Z40: 0 | AA40: 0 | AB40: 0 | AC40: Ok
A41: LARVIN (T) WP75 40X100GR BAG IN | B41: 78 | C41: 0 | D41: 0 | E41: 0 | F41: 0 | G41: 0 | H41: 0 | I41: 0 | J41: 78 | K41: 78 | L41: 0 | M41: 0 | N41: 0 | O41: 0 | P41: 0 | Q41: 0 | R41: 0 | S41: 78 | T41: 0 | U41: 0 | V41: 0 | W41: 0 | X41: 0 | Y41: 0 | Z41: 0 | AA41: 0 | AB41: 0 | AC41: Ok
A42: LAUDIS SC630 10X57.5ML BOT IN | B42: 10 | C42: 0 | D42: 0 | E42: 0 | F42: 0 | G42: 0 | H42: 0 | I42: 0 | J42: 10 | K42: 10 | L42: 0 | M42: 0 | N42: 0 | O42: 0 | P42: 0 | Q42: 0 | R42: 0 | S42: 10 | T42: 0 | U42: 0 | V42: 0 | W42: 0 | X42: 0 | Y42: 0 | Z42: 0 | AA42: 0 | AB42: 0 | AC42: Ok
A43: MOVENTO ENERGY SC240 40X250ML BOT IN | B43: 61 | C43: 0 | D43: 0 | E43: 3 | F43: 0 | G43: 0 | H43: 0 | I43: 0 | J43: 58 | K43: 61 | L43: 0 | M43: 0 | N43: 3 | O43: 0 | P43: 0 | Q43: 0 | R43: 0 | S43: 58 | T43: 0 | U43: 0 | V43: 0 | W43: 0 | X43: 0 | Y43: 0 | Z43: 0 | AA43: 0 | AB43: 0 | AC43: Ok
A44: MOVENTO ENERGY SC240 50X100ML BOT IN | B44: 1 | C44: 0 | D44: 0 | E44: 0 | F44: 0 | G44: 0 | H44: 0 | I44: 0 | J44: 1 | K44: 1 | L44: 0 | M44: 0 | N44: 0 | O44: 0 | P44: 0 | Q44: 0 | R44: 0 | S44: 1 | T44: 0 | U44: 0 | V44: 0 | W44: 0 | X44: 0 | Y44: 0 | Z44: 0 | AA44: 0 | AB44: 0 | AC44: Ok
A45: NATIVO WG75 100X50GR BAG IN | B45: 432 | C45: 0 | D45: 0 | E45: 58 | F45: 0 | G45: 0 | H45: 0 | I45: 0 | J45: 374 | K45: 432 | L45: 0 | M45: 0 | N45: 58 | O45: 0 | P45: 0 | Q45: 0 | R45: 0 | S45: 374 | T45: 0 | U45: 0 | V45: 0 | W45: 0 | X45: 0 | Y45: 0 | Z45: 0 | AA45: 0 | AB45: 0 | AC45: Ok
A46: NATIVO WG75 20X500GR BAG IN | B46: 0 | C46: 0 | D46: 0 | E46: 1 | F46: 0 | G46: 0 | H46: 0 | I46: 0 | J46: -1 | K46: 0 | L46: 0 | M46: 0 | N46: 1 | O46: 0 | P46: 0 | Q46: 0 | R46: 0 | S46: -1 | T46: 0 | U46: 0 | V46: 0 | W46: 0 | X46: 0 | Y46: 0 | Z46: 0 | AA46: 0 | AB46: 0 | AC46: Ok
A47: NATIVO WG75 40X250GR BAG IN | B47: 334 | C47: 0 | D47: 0 | E47: 8 | F47: 0 | G47: 0 | H47: 0 | I47: 0 | J47: 326 | K47: 334 | L47: 0 | M47: 0 | N47: 8 | O47: 0 | P47: 0 | Q47: 0 | R47: 0 | S47: 326 | T47: 0 | U47: 0 | V47: 0 | W47: 0 | X47: 0 | Y47: 0 | Z47: 0 | AA47: 0 | AB47: 0 | AC47: Ok
A48: NATIVO WG75 50X100GR BAG IN | B48: 828 | C48: 0 | D48: 0 | E48: 10 | F48: 0 | G48: 0 | H48: 0 | I48: 0 | J48: 818 | K48: 828 | L48: 0 | M48: 0 | N48: 10 | O48: 0 | P48: 0 | Q48: 0 | R48: 0 | S48: 818 | T48: 0 | U48: 0 | V48: 0 | W48: 0 | X48: 0 | Y48: 0 | Z48: 0 | AA48: 0 | AB48: 0 | AC48: Ok
A49: OBERON (T) SC240 40X200ML BOT IN | B49: 33 | C49: 0 | D49: 0 | E49: 2 | F49: 0 | G49: 0 | H49: 0 | I49: 0 | J49: 31 | K49: 33 | L49: 0 | M49: 0 | N49: 2 | O49: 0 | P49: 0 | Q49: 0 | R49: 0 | S49: 31 | T49: 0 | U49: 0 | V49: 0 | W49: 0 | X49: 0 | Y49: 0 | Z49: 0 | AA49: 0 | AB49: 0 | AC49: Ok
A50: PLANOFIX SL4 5 40X250ML BOT IN | B50: 141 | C50: 0 | D50: 0 | E50: 0 | F50: 0 | G50: 0 | H50: 0 | I50: 0 | J50: 141 | K50: 141 | L50: 0 | M50: 0 | N50: 0 | O50: 0 | P50: 0 | Q50: 0 | R50: 0 | S50: 141 | T50: 0 | U50: 0 | V50: 0 | W50: 0 | X50: 0 | Y50: 0 | Z50: 0 | AA50: 0 | AB50: 0 | AC50: Ok
A51: PLANOFIX SL4 5 50X100ML BOT IN | B51: 100 | C51: 0 | D51: 0 | E51: 0 | F51: 0 | G51: 0 | H51: 0 | I51: 0 | J51: 100 | K51: 100 | L51: 0 | M51: 0 | N51: 0 | O51: 0 | P51: 0 | Q51: 0 | R51: 0 | S51: 100 | T51: 0 | U51: 0 | V51: 0 | W51: 0 | X51: 0 | Y51: 0 | Z51: 0 | AA51: 0 | AB51: 0 | AC51: Ok
A52: REGENT (T) SC50 20X250ML BOT IN | B52: 536 | C52: 0 | D52: 0 | E52: 50 | F52: 0 | G52: 0 | H52: 0 | I52: 0 | J52: 486 | K52: 536 | L52: 0 | M52: 0 | N52: 50 | O52: 0 | P52: 0 | Q52: 0 | R52: 0 | S52: 486 | T52: 0 | U52: 0 | V52: 0 | W52: 0 | X52: 0 | Y52: 0 | Z52: 0 | AA52: 0 | AB52: 0 | AC52: Ok
A53: REGENT (T) SC50 20X500ML BOT IN | B53: 537 | C53: 0 | D53: 0 | E53: 24 | F53: 0 | G53: 0 | H53: 0 | I53: 0 | J53: 513 | K53: 537 | L53: 0 | M53: 0 | N53: 24 | O53: 0 | P53: 0 | Q53: 0 | R53: 0 | S53: 513 | T53: 0 | U53: 0 | V53: 0 | W53: 0 | X53: 0 | Y53: 0 | Z53: 0 | AA53: 0 | AB53: 0 | AC53: Ok
A54: REGENT GOLD SC200 20X500ML BOT IN | B54: 67 | C54: 0 | D54: 0 | E54: 0 | F54: 0 | G54: 0 | H54: 0 | I54: 0 | J54: 67 | K54: 67 | L54: 0 | M54: 0 | N54: 0 | O54: 0 | P54: 0 | Q54: 0 | R54: 0 | S54: 67 | T54: 0 | U54: 0 | V54: 0 | W54: 0 | X54: 0 | Y54: 0 | Z54: 0 | AA54: 0 | AB54: 0 | AC54: Ok
A55: REGENT GOLD SC200 40X250ML BOT IN | B55: 82 | C55: 0 | D55: 0 | E55: 0 | F55: 0 | G55: 0 | H55: 0 | I55: 0 | J55: 82 | K55: 82 | L55: 0 | M55: 0 | N55: 0 | O55: 0 | P55: 0 | Q55: 0 | R55: 0 | S55: 82 | T55: 0 | U55: 0 | V55: 0 | W55: 0 | X55: 0 | Y55: 0 | Z55: 0 | AA55: 0 | AB55: 0 | AC55: Ok
A56: SIVANTO PRIME SL200 40X250ML BOT IN | B56: 2 | C56: 0 | D56: 0 | E56: 0 | F56: 0 | G56: 0 | H56: 0 | I56: 0 | J56: 2 | K56: 2 | L56: 0 | M56: 0 | N56: 0 | O56: 0 | P56: 0 | Q56: 0 | R56: 0 | S56: 2 | T56: 0 | U56: 0 | V56: 0 | W56: 0 | X56: 0 | Y56: 0 | Z56: 0 | AA56: 0 | AB56: 0 | AC56: Ok
A57: SOLOMON OD300 20X500ML BOT IN | B57: 3 | C57: 0 | D57: 0 | E57: 0 | F57: 0 | G57: 0 | H57: 0 | I57: 0 | J57: 3 | K57: 3 | L57: 0 | M57: 0 | N57: 0 | O57: 0 | P57: 0 | Q57: 0 | R57: 0 | S57: 3 | T57: 0 | U57: 0 | V57: 0 | W57: 0 | X57: 0 | Y57: 0 | Z57: 0 | AA57: 0 | AB57: 0 | AC57: Ok
A58: SPINTOR SC495 10X(20X7ML) BOT IN | B58: 2 | C58: 0 | D58: 0 | E58: 0 | F58: 0 | G58: 0 | H58: 0 | I58: 0 | J58: 2 | K58: 2 | L58: 0 | M58: 0 | N58: 0 | O58: 0 | P58: 0 | Q58: 0 | R58: 0 | S58: 2 | T58: 0 | U58: 0 | V58: 0 | W58: 0 | X58: 0 | Y58: 0 | Z58: 0 | AA58: 0 | AB58: 0 | AC58: Ok
A59: SPINTOR SC495 20X75ML BOT IN | B59: 102 | C59: 0 | D59: 0 | E59: 0 | F59: 0 | G59: 0 | H59: 0 | I59: 0 | J59: 102 | K59: 102 | L59: 0 | M59: 0 | N59: 0 | O59: 0 | P59: 0 | Q59: 0 | R59: 0 | S59: 102 | T59: 0 | U59: 0 | V59: 0 | W59: 0 | X59: 0 | Y59: 0 | Z59: 0 | AA59: 0 | AB59: 0 | AC59: Ok
A60: WHIPSUPER (T) EC90 20X500ML BOT IN | B60: 20 | C60: 0 | D60: 0 | E60: 0 | F60: 0 | G60: 0 | H60: 0 | I60: 0 | J60: 20 | K60: 20 | L60: 0 | M60: 0 | N60: 0 | O60: 0 | P60: 0 | Q60: 0 | R60: 0 | S60: 20 | T60: 0 | U60: 0 | V60: 0 | W60: 0 | X60: 0 | Y60: 0 | Z60: 0 | AA60: 0 | AB60: 0 | AC60: Ok
A61: WHIPSUPER (T) EC90 40X250ML BOT IN | B61: 38 | C61: 0 | D61: 0 | E61: 0 | F61: 0 | G61: 0 | H61: 0 | I61: 0 | J61: 38 | K61: 38 | L61: 0 | M61: 0 | N61: 0 | O61: 0 | P61: 0 | Q61: 0 | R61: 0 | S61: 38 | T61: 0 | U61: 0 | V61: 0 | W61: 0 | X61: 0 | Y61: 0 | Z61: 0 | AA61: 0 | AB61: 0 | AC61: Ok
A62: DECIS EC 28 50X100ML BOT IN | B62: 2 | C62: 0 | D62: 0 | E62: 0 | F62: 0 | G62: 0 | H62: 0 | I62: 0 | J62: 2 | K62: 2 | L62: 0 | M62: 0 | N62: 0 | O62: 0 | P62: 0 | Q62: 0 | R62: 0 | S62: 2 | T62: 0 | U62: 0 | V62: 0 | W62: 0 | X62: 0 | Y62: 0 | Z62: 0 | AA62: 0 | AB62: 0 | AC62: Ok
A63: REGENT (T) SC50 10X1L BOT IN | B63: 230 | C63: 0 | D63: 0 | E63: 2 | F63: 0 | G63: 0 | H63: 0 | I63: 0 | J63: 228 | K63: 230 | L63: 0 | M63: 0 | N63: 2 | O63: 0 | P63: 0 | Q63: 0 | R63: 0 | S63: 228 | T63: 0 | U63: 0 | V63: 0 | W63: 0 | X63: 0 | Y63: 0 | Z63: 0 | AA63: 0 | AB63: 0 | AC63: Ok
A64: ADUE WG70 3X200G BOT IN | B64: 0 | C64: 0 | D64: 0 | E64: 0 | F64: 0 | G64: 0 | H64: 0 | I64: 0 | J64: 0 | K64: 0 | L64: 0 | M64: 0 | N64: 0 | O64: 0 | P64: 0 | Q64: 0 | R64: 0 | S64: 0 | T64: 0 | U64: 0 | V64: 0 | W64: 0 | X64: 0 | Y64: 0 | Z64: 0 | AA64: 0 | AB64: 0 | AC64: Ok
A65: ADUE WG70 6X100G BOT IN | B65: 0 | C65: 0 | D65: 0 | E65: 0 | F65: 0 | G65: 0 | H65: 0 | I65: 0 | J65: 0 | K65: 0 | L65: 0 | M65: 0 | N65: 0 | O65: 0 | P65: 0 | Q65: 0 | R65: 0 | S65: 0 | T65: 0 | U65: 0 | V65: 0 | W65: 0 | X65: 0 | Y65: 0 | Z65: 0 | AA65: 0 | AB65: 0 | AC65: Ok
A66: ALANTO (T) SC240 20X500ML BOT IN | B66: 0 | C66: 0 | D66: 0 | E66: 0 | F66: 0 | G66: 0 | H66: 0 | I66: 0 | J66: 0 | K66: 0 | L66: 0 | M66: 0 | N66: 0 | O66: 0 | P66: 0 | Q66: 0 | R66: 0 | S66: 0 | T66: 0 | U66: 0 | V66: 0 | W66: 0 | X66: 0 | Y66: 0 | Z66: 0 | AA66: 0 | AB66: 0 | AC66: Ok
A67: BELT EXPERT SC480 100X50ML BOT IN | B67: 0 | C67: 0 | D67: 0 | E67: 0 | F67: 0 | G67: 0 | H67: 0 | I67: 0 | J67: 0 | K67: 0 | L67: 0 | M67: 0 | N67: 0 | O67: 0 | P67: 0 | Q67: 0 | R67: 0 | S67: 0 | T67: 0 | U67: 0 | V67: 0 | W67: 0 | X67: 0 | Y67: 0 | Z67: 0 | AA67: 0 | AB67: 0 | AC67: Ok
A68: BELT EXPERT SC480 40X250ML BOT IN | B68: 0 | C68: 0 | D68: 0 | E68: 0 | F68: 0 | G68: 0 | H68: 0 | I68: 0 | J68: 0 | K68: 0 | L68: 0 | M68: 0 | N68: 0 | O68: 0 | P68: 0 | Q68: 0 | R68: 0 | S68: 0 | T68: 0 | U68: 0 | V68: 0 | W68: 0 | X68: 0 | Y68: 0 | Z68: 0 | AA68: 0 | AB68: 0 | AC68: Ok
A69: BELT EXPERT SC480 50X100ML BOT IN | B69: 0 | C69: 0 | D69: 0 | E69: 0 | F69: 0 | G69: 0 | H69: 0 | I69: 0 | J69: 0 | K69: 0 | L69: 0 | M69: 0 | N69: 0 | O69: 0 | P69: 0 | Q69: 0 | R69: 0 | S69: 0 | T69: 0 | U69: 0 | V69: 0 | W69: 0 | X69: 0 | Y69: 0 | Z69: 0 | AA69: 0 | AB69: 0 | AC69: Ok
A70: DECIS EC 28 20X500ML BOT IN | B70: 0 | C70: 0 | D70: 0 | E70: 0 | F70: 0 | G70: 0 | H70: 0 | I70: 0 | J70: 0 | K70: 0 | L70: 0 | M70: 0 | N70: 0 | O70: 0 | P70: 0 | Q70: 0 | R70: 0 | S70: 0 | T70: 0 | U70: 0 | V70: 0 | W70: 0 | X70: 0 | Y70: 0 | Z70: 0 | AA70: 0 | AB70: 0 | AC70: Ok
A71: ETHREL SL39 20X500ML BOT IN | B71: 0 | C71: 0 | D71: 0 | E71: 0 | F71: 0 | G71: 0 | H71: 0 | I71: 0 | J71: 0 | K71: 0 | L71: 0 | M71: 0 | N71: 0 | O71: 0 | P71: 0 | Q71: 0 | R71: 0 | S71: 0 | T71: 0 | U71: 0 | V71: 0 | W71: 0 | X71: 0 | Y71: 0 | Z71: 0 | AA71: 0 | AB71: 0 | AC71: Ok
A72: FITREST SG5 40X100GR BOT IN | B72: 0 | C72: 0 | D72: 0 | E72: 0 | F72: 0 | G72: 0 | H72: 0 | I72: 0 | J72: 0 | K72: 0 | L72: 0 | M72: 0 | N72: 0 | O72: 0 | P72: 0 | Q72: 0 | R72: 0 | S72: 0 | T72: 0 | U72: 0 | V72: 0 | W72: 0 | X72: 0 | Y72: 0 | Z72: 0 | AA72: 0 | AB72: 0 | AC72: Ok
A73: FOLICUR (T) EC250 20X500ML BOT IN | B73: 0 | C73: 0 | D73: 0 | E73: 0 | F73: 0 | G73: 0 | H73: 0 | I73: 0 | J73: 0 | K73: 0 | L73: 0 | M73: 0 | N73: 0 | O73: 0 | P73: 0 | Q73: 0 | R73: 0 | S73: 0 | T73: 0 | U73: 0 | V73: 0 | W73: 0 | X73: 0 | Y73: 0 | Z73: 0 | AA73: 0 | AB73: 0 | AC73: Ok
A74: FOOST WP50 24X500G BAG IN | B74: 0 | C74: 0 | D74: 0 | E74: 0 | F74: 0 | G74: 0 | H74: 0 | I74: 0 | J74: 0 | K74: 0 | L74: 0 | M74: 0 | N74: 0 | O74: 0 | P74: 0 | Q74: 0 | R74: 0 | S74: 0 | T74: 0 | U74: 0 | V74: 0 | W74: 0 | X74: 0 | Y74: 0 | Z74: 0 | AA74: 0 | AB74: 0 | AC74: Ok
A75: JUMP WG80 160X(10X2GR) BAG IN | B75: 0 | C75: 0 | D75: 0 | E75: 0 | F75: 0 | G75: 0 | H75: 0 | I75: 0 | J75: 0 | K75: 0 | L75: 0 | M75: 0 | N75: 0 | O75: 0 | P75: 0 | Q75: 0 | R75: 0 | S75: 0 | T75: 0 | U75: 0 | V75: 0 | W75: 0 | X75: 0 | Y75: 0 | Z75: 0 | AA75: 0 | AB75: 0 | AC75: Ok
A76: LAUDIS SC630 8X115ML BOT IN | B76: 0 | C76: 0 | D76: 0 | E76: 0 | F76: 0 | G76: 0 | H76: 0 | I76: 0 | J76: 0 | K76: 0 | L76: 0 | M76: 0 | N76: 0 | O76: 0 | P76: 0 | Q76: 0 | R76: 0 | S76: 0 | T76: 0 | U76: 0 | V76: 0 | W76: 0 | X76: 0 | Y76: 0 | Z76: 0 | AA76: 0 | AB76: 0 | AC76: Ok
A77: LESENTA WG80 100X40GR BAG IN | B77: 0 | C77: 0 | D77: 0 | E77: 0 | F77: 0 | G77: 0 | H77: 0 | I77: 0 | J77: 0 | K77: 0 | L77: 0 | M77: 0 | N77: 0 | O77: 0 | P77: 0 | Q77: 0 | R77: 0 | S77: 0 | T77: 0 | U77: 0 | V77: 0 | W77: 0 | X77: 0 | Y77: 0 | Z77: 0 | AA77: 0 | AB77: 0 | AC77: Ok
A78: LESENTA WG80 50X100GR BAG IN | B78: 0 | C78: 0 | D78: 0 | E78: 0 | F78: 0 | G78: 0 | H78: 0 | I78: 0 | J78: 0 | K78: 0 | L78: 0 | M78: 0 | N78: 0 | O78: 0 | P78: 0 | Q78: 0 | R78: 0 | S78: 0 | T78: 0 | U78: 0 | V78: 0 | W78: 0 | X78: 0 | Y78: 0 | Z78: 0 | AA78: 0 | AB78: 0 | AC78: Ok
A79: OBERON (T) SC240 20X500ML BOT IN | B79: 0 | C79: 0 | D79: 0 | E79: 0 | F79: 0 | G79: 0 | H79: 0 | I79: 0 | J79: 0 | K79: 0 | L79: 0 | M79: 0 | N79: 0 | O79: 0 | P79: 0 | Q79: 0 | R79: 0 | S79: 0 | T79: 0 | U79: 0 | V79: 0 | W79: 0 | X79: 0 | Y79: 0 | Z79: 0 | AA79: 0 | AB79: 0 | AC79: Ok
A80: PLANOFIX SL4 5 20X500ML BOT IN | B80: 0 | C80: 0 | D80: 0 | E80: 0 | F80: 0 | G80: 0 | H80: 0 | I80: 0 | J80: 0 | K80: 0 | L80: 0 | M80: 0 | N80: 0 | O80: 0 | P80: 0 | Q80: 0 | R80: 0 | S80: 0 | T80: 0 | U80: 0 | V80: 0 | W80: 0 | X80: 0 | Y80: 0 | Z80: 0 | AA80: 0 | AB80: 0 | AC80: Ok
A81: REGENT GR0 3 20X1KG BAG IN | B81: 0 | C81: 0 | D81: 0 | E81: 0 | F81: 0 | G81: 0 | H81: 0 | I81: 0 | J81: 0 | K81: 0 | L81: 0 | M81: 0 | N81: 0 | O81: 0 | P81: 0 | Q81: 0 | R81: 0 | S81: 0 | T81: 0 | U81: 0 | V81: 0 | W81: 0 | X81: 0 | Y81: 0 | Z81: 0 | AA81: 0 | AB81: 0 | AC81: Ok
A82: SECTIN WG60 50X100GR BAG IN | B82: 0 | C82: 0 | D82: 0 | E82: 0 | F82: 0 | G82: 0 | H82: 0 | I82: 0 | J82: 0 | K82: 0 | L82: 0 | M82: 0 | N82: 0 | O82: 0 | P82: 0 | Q82: 0 | R82: 0 | S82: 0 | T82: 0 | U82: 0 | V82: 0 | W82: 0 | X82: 0 | Y82: 0 | Z82: 0 | AA82: 0 | AB82: 0 | AC82: Ok
A83: SENCOR WP70 60X100GR BAG IN | B83: 0 | C83: 0 | D83: 0 | E83: 0 | F83: 0 | G83: 0 | H83: 0 | I83: 0 | J83: 0 | K83: 0 | L83: 0 | M83: 0 | N83: 0 | O83: 0 | P83: 0 | Q83: 0 | R83: 0 | S83: 0 | T83: 0 | U83: 0 | V83: 0 | W83: 0 | X83: 0 | Y83: 0 | Z83: 0 | AA83: 0 | AB83: 0 | AC83: Ok
A84: SOLOMON OD300 10X1L BOT IN | B84: 0 | C84: 0 | D84: 0 | E84: 0 | F84: 0 | G84: 0 | H84: 0 | I84: 0 | J84: 0 | K84: 0 | L84: 0 | M84: 0 | N84: 0 | O84: 0 | P84: 0 | Q84: 0 | R84: 0 | S84: 0 | T84: 0 | U84: 0 | V84: 0 | W84: 0 | X84: 0 | Y84: 0 | Z84: 0 | AA84: 0 | AB84: 0 | AC84: Ok
A85: SOLOMON OD300 40X250ML BOT IN | B85: 0 | C85: 0 | D85: 0 | E85: 0 | F85: 0 | G85: 0 | H85: 0 | I85: 0 | J85: 0 | K85: 0 | L85: 0 | M85: 0 | N85: 0 | O85: 0 | P85: 0 | Q85: 0 | R85: 0 | S85: 0 | T85: 0 | U85: 0 | V85: 0 | W85: 0 | X85: 0 | Y85: 0 | Z85: 0 | AA85: 0 | AB85: 0 | AC85: Ok
A86: SOLOMON OD300 50X100ML BOT IN | B86: 0 | C86: 0 | D86: 0 | E86: 0 | F86: 0 | G86: 0 | H86: 0 | I86: 0 | J86: 0 | K86: 0 | L86: 0 | M86: 0 | N86: 0 | O86: 0 | P86: 0 | Q86: 0 | R86: 0 | S86: 0 | T86: 0 | U86: 0 | V86: 0 | W86: 0 | X86: 0 | Y86: 0 | Z86: 0 | AA86: 0 | AB86: 0 | AC86: Ok
A87: WHIPSUPER (T) EC90 10X1L BOT IN | B87: 0 | C87: 0 | D87: 0 | E87: 0 | F87: 0 | G87: 0 | H87: 0 | I87: 0 | J87: 0 | K87: 0 | L87: 0 | M87: 0 | N87: 0 | O87: 0 | P87: 0 | Q87: 0 | R87: 0 | S87: 0 | T87: 0 | U87: 0 | V87: 0 | W87: 0 | X87: 0 | Y87: 0 | Z87: 0 | AA87: 0 | AB87: 0 | AC87: Ok
A88: Total | B88: 13862 | C88: 0 | D88: 0 | E88: 334 | F88: 0 | G88: 0 | H88: 0 | I88: 0 | J88: 13528 | K88: 13862 | L88: 0 | M88: 0 | N88: 334 | O88: 0 | P88: 0 | Q88: 0 | R88: 0 | S88: 13528 | T88: 0 | U88: 0 | V88: 0 | W88: 0 | X88: 0 | Y88: 0 | Z88: 0 | AA88: 0 | AB88: 0
